Workbook

Sheet 검토 시설개요
A1: 5.1 소규모 하수도 계획인구 및 계획하수량
A2: 시설명 | B2: 시설용량 (㎥/일) | C2: 세대수 (세대) | D2: 계획인구 | F2: 계획하수량 | H2: 관로연장 (m)
D3: 2020년 | E3: 2025년 | F3: 2020년 | G3: 2025년
A4: 황소 | B4: =VLOOKUP($A4,'신설 계획인구 및 계획하수량'!$A:$I,3,FALSE) -> 60 | C4: =VLOOKUP($A4,'신설 계획인구 및 계획하수량'!$A:$I,4,FALSE) -> 108 | D4: =VLOOKUP($A4,'신설 계획인구 및 계획하수량'!$A:$I,5,FALSE) -> 284 | E4: =VLOOKUP($A4,'신설 계획인구 및 계획하수량'!$A:$I,6,FALSE) -> 282 | F4: =VLOOKUP($A4,'신설 계획인구 및 계획하수량'!$A:$I,8,FALSE) -> 57 | G4: =VLOOKUP($A4,'신설 계획인구 및 계획하수량'!$A:$I,9,FALSE) -> 56 | H4: 2202
A5: 봉곡 | B5: =VLOOKUP($A5,'신설 계획인구 및 계획하수량'!$A:$I,3,FALSE) -> 140 | C5: =VLOOKUP($A5,'신설 계획인구 및 계획하수량'!$A:$I,4,FALSE) -> 311 | D5: =VLOOKUP($A5,'신설 계획인구 및 계획하수량'!$A:$I,5,FALSE) -> 682 | E5: =VLOOKUP($A5,'신설 계획인구 및 계획하수량'!$A:$I,6,FALSE) -> 675 | F5: =VLOOKUP($A5,'신설 계획인구 및 계획하수량'!$A:$I,8,FALSE) -> 137 | G5: =VLOOKUP($A5,'신설 계획인구 및 계획하수량'!$A:$I,9,FALSE) -> 135 | H5: 7374
A6: 운곡 | B6: =VLOOKUP($A6,'신설 계획인구 및 계획하수량'!$A:$I,3,FALSE) -> 70 | C6: =VLOOKUP($A6,'신설 계획인구 및 계획하수량'!$A:$I,4,FALSE) -> 152 | D6: =VLOOKUP($A6,'신설 계획인구 및 계획하수량'!$A:$I,5,FALSE) -> 312 | E6: =VLOOKUP($A6,'신설 계획인구 및 계획하수량'!$A:$I,6,FALSE) -> 309 | F6: =VLOOKUP($A6,'신설 계획인구 및 계획하수량'!$A:$I,8,FALSE) -> 62 | G6: =VLOOKUP($A6,'신설 계획인구 및 계획하수량'!$A:$I,9,FALSE) -> 62 | H6: 1950
A7: 초곡 | B7: =VLOOKUP($A7,'신설 계획인구 및 계획하수량'!$A:$I,3,FALSE) -> 50 | C7: =VLOOKUP($A7,'신설 계획인구 및 계획하수량'!$A:$I,4,FALSE) -> 126 | D7: =VLOOKUP($A7,'신설 계획인구 및 계획하수량'!$A:$I,5,FALSE) -> 248 | E7: =VLOOKUP($A7,'신설 계획인구 및 계획하수량'!$A:$I,6,FALSE) -> 245 | F7: =VLOOKUP($A7,'신설 계획인구 및 계획하수량'!$A:$I,8,FALSE) -> 50 | G7: =VLOOKUP($A7,'신설 계획인구 및 계획하수량'!$A:$I,9,FALSE) -> 49 | H7: 1953
A8: 구야 | B8: =VLOOKUP($A8,'신설 계획인구 및 계획하수량'!$A:$I,3,FALSE) -> 110 | C8: =VLOOKUP($A8,'신설 계획인구 및 계획하수량'!$A:$I,4,FALSE) -> 242 | D8: =VLOOKUP($A8,'신설 계획인구 및 계획하수량'!$A:$I,5,FALSE) -> 548 | E8: =VLOOKUP($A8,'신설 계획인구 및 계획하수량'!$A:$I,6,FALSE) -> 543 | F8: =VLOOKUP($A8,'신설 계획인구 및 계획하수량'!$A:$I,8,FALSE) -> 110 | G8: =VLOOKUP($A8,'신설 계획인구 및 계획하수량'!$A:$I,9,FALSE) -> 109 | H8: 5607
A9: 문무 | B9: =VLOOKUP($A9,'신설 계획인구 및 계획하수량'!$A:$I,3,FALSE) -> 50 | C9: =VLOOKUP($A9,'신설 계획인구 및 계획하수량'!$A:$I,4,FALSE) -> 117 | D9: =VLOOKUP($A9,'신설 계획인구 및 계획하수량'!$A:$I,5,FALSE) -> 222 | E9: =VLOOKUP($A9,'신설 계획인구 및 계획하수량'!$A:$I,6,FALSE) -> 220 | F9: =VLOOKUP($A9,'신설 계획인구 및 계획하수량'!$A:$I,8,FALSE) -> 44 | G9: =VLOOKUP($A9,'신설 계획인구 및 계획하수량'!$A:$I,9,FALSE) -> 44 | H9: 2253
A10: 남곡 | B10: =VLOOKUP($A10,'신설 계획인구 및 계획하수량'!$A:$I,3,FALSE) -> 50 | C10: =VLOOKUP($A10,'신설 계획인구 및 계획하수량'!$A:$I,4,FALSE) -> 129 | D10: =VLOOKUP($A10,'신설 계획인구 및 계획하수량'!$A:$I,5,FALSE) -> 246 | E10: =VLOOKUP($A10,'신설 계획인구 및 계획하수량'!$A:$I,6,FALSE) -> 243 | F10: =VLOOKUP($A10,'신설 계획인구 및 계획하수량'!$A:$I,8,FALSE) -> 49 | G10: =VLOOKUP($A10,'신설 계획인구 및 계획하수량'!$A:$I,9,FALSE) -> 49 | H10: 1407
A11: 던돌마 | B11: =VLOOKUP($A11,'신설 계획인구 및 계획하수량'!$A:$I,3,FALSE) -> 70 | C11: =VLOOKUP($A11,'신설 계획인구 및 계획하수량'!$A:$I,4,FALSE) -> 138 | D11: =VLOOKUP($A11,'신설 계획인구 및 계획하수량'!$A:$I,5,FALSE) -> 306 | E11: =VLOOKUP($A11,'신설 계획인구 및 계획하수량'!$A:$I,6,FALSE) -> 304 | F11: =VLOOKUP($A11,'신설 계획인구 및 계획하수량'!$A:$I,8,FALSE) -> 61 | G11: =VLOOKUP($A11,'신설 계획인구 및 계획하수량'!$A:$I,9,FALSE) -> 61 | H11: 4027
A12: 덕남 | B12: =VLOOKUP($A12,'신설 계획인구 및 계획하수량'!$A:$I,3,FALSE) -> 170 | C12: =VLOOKUP($A12,'신설 계획인구 및 계획하수량'!$A:$I,4,FALSE) -> 408 | D12: =VLOOKUP($A12,'신설 계획인구 및 계획하수량'!$A:$I,5,FALSE) -> 846 | E12: =VLOOKUP($A12,'신설 계획인구 및 계획하수량'!$A:$I,6,FALSE) -> 838 | F12: =VLOOKUP($A12,'신설 계획인구 및 계획하수량'!$A:$I,8,FALSE) -> 169 | G12: =VLOOKUP($A12,'신설 계획인구 및 계획하수량'!$A:$I,9,FALSE) -> 167 | H12: 11248
A13: 대양 | B13: =VLOOKUP($A13,'신설 계획인구 및 계획하수량'!$A:$I,3,FALSE) -> 40 | C13: =VLOOKUP($A13,'신설 계획인구 및 계획하수량'!$A:$I,4,FALSE) -> 95 | D13: =VLOOKUP($A13,'신설 계획인구 및 계획하수량'!$A:$I,5,FALSE) -> 195 | E13: =VLOOKUP($A13,'신설 계획인구 및 계획하수량'!$A:$I,6,FALSE) -> 194 | F13: =VLOOKUP($A13,'신설 계획인구 및 계획하수량'!$A:$I,8,FALSE) -> 39 | G13: =VLOOKUP($A13,'신설 계획인구 및 계획하수량'!$A:$I,9,FALSE) -> 39 | H13: 2857
A14: 옥율 | B14: =VLOOKUP($A14,'신설 계획인구 및 계획하수량'!$A:$I,3,FALSE) -> 50 | C14: =VLOOKUP($A14,'신설 계획인구 및 계획하수량'!$A:$I,4,FALSE) -> 103 | D14: =VLOOKUP($A14,'신설 계획인구 및 계획하수량'!$A:$I,5,FALSE) -> 250 | E14: =VLOOKUP($A14,'신설 계획인구 및 계획하수량'!$A:$I,6,FALSE) -> 247 | F14: =VLOOKUP($A14,'신설 계획인구 및 계획하수량'!$A:$I,8,FALSE) -> 50 | G14: =VLOOKUP($A14,'신설 계획인구 및 계획하수량'!$A:$I,9,FALSE) -> 49 | H14: 1865
A15: 능치 | B15: =VLOOKUP($A15,'신설 계획인구 및 계획하수량'!$A:$I,3,FALSE) -> 150 | C15: =VLOOKUP($A15,'신설 계획인구 및 계획하수량'!$A:$I,4,FALSE) -> 374 | D15: =VLOOKUP($A15,'신설 계획인구 및 계획하수량'!$A:$I,5,FALSE) -> 760 | E15: =VLOOKUP($A15,'신설 계획인구 및 계획하수량'!$A:$I,6,FALSE) -> 754 | F15: =VLOOKUP($A15,'신설 계획인구 및 계획하수량'!$A:$I,8,FALSE) -> 153 | G15: =VLOOKUP($A15,'신설 계획인구 및 계획하수량'!$A:$I,9,FALSE) -> 150 | H15: 9019
A16: 도암 | B16: =VLOOKUP($A16,'신설 계획인구 및 계획하수량'!$A:$I,3,FALSE) -> 130 | C16: =VLOOKUP($A16,'신설 계획인구 및 계획하수량'!$A:$I,4,FALSE) -> 299 | D16: =VLOOKUP($A16,'신설 계획인구 및 계획하수량'!$A:$I,5,FALSE) -> 626 | E16: =VLOOKUP($A16,'신설 계획인구 및 계획하수량'!$A:$I,6,FALSE) -> 621 | F16: =VLOOKUP($A16,'신설 계획인구 및 계획하수량'!$A:$I,8,FALSE) -> 124 | G16: =VLOOKUP($A16,'신설 계획인구 및 계획하수량'!$A:$I,9,FALSE) -> 124 | H16: 7917
A17: 태화 | B17: =VLOOKUP($A17,'신설 계획인구 및 계획하수량'!$A:$I,3,FALSE) -> 90 | C17: =VLOOKUP($A17,'신설 계획인구 및 계획하수량'!$A:$I,4,FALSE) -> 177 | D17: =VLOOKUP($A17,'신설 계획인구 및 계획하수량'!$A:$I,5,FALSE) -> 425 | E17: =VLOOKUP($A17,'신설 계획인구 및 계획하수량'!$A:$I,6,FALSE) -> 420 | F17: =VLOOKUP($A17,'신설 계획인구 및 계획하수량'!$A:$I,8,FALSE) -> 85 | G17: =VLOOKUP($A17,'신설 계획인구 및 계획하수량'!$A:$I,9,FALSE) -> 85 | H17: 4862
A18: 신암 | B18: =VLOOKUP($A18,'신설 계획인구 및 계획하수량'!$A:$I,3,FALSE) -> 90 | C18: =VLOOKUP($A18,'신설 계획인구 및 계획하수량'!$A:$I,4,FALSE) -> 202 | D18: =VLOOKUP($A18,'신설 계획인구 및 계획하수량'!$A:$I,5,FALSE) -> 416 | E18: =VLOOKUP($A18,'신설 계획인구 및 계획하수량'!$A:$I,6,FALSE) -> 414 | F18: =VLOOKUP($A18,'신설 계획인구 및 계획하수량'!$A:$I,8,FALSE) -> 83 | G18: =VLOOKUP($A18,'신설 계획인구 및 계획하수량'!$A:$I,9,FALSE) -> 82 | H18: 5419
A19: 광기 | B19: =VLOOKUP($A19,'신설 계획인구 및 계획하수량'!$A:$I,3,FALSE) -> 110 | C19: =VLOOKUP($A19,'신설 계획인구 및 계획하수량'!$A:$I,4,FALSE) -> 215 | D19: =VLOOKUP($A19,'신설 계획인구 및 계획하수량'!$A:$I,5,FALSE) -> 510 | E19: =VLOOKUP($A19,'신설 계획인구 및 계획하수량'!$A:$I,6,FALSE) -> 505 | F19: =VLOOKUP($A19,'신설 계획인구 및 계획하수량'!$A:$I,8,FALSE) -> 102 | G19: =VLOOKUP($A19,'신설 계획인구 및 계획하수량'!$A:$I,9,FALSE) -> 101 | H19: 5415
A20: 무안 | B20: =VLOOKUP($A20,'신설 계획인구 및 계획하수량'!$A:$I,3,FALSE) -> 50 | C20: =VLOOKUP($A20,'신설 계획인구 및 계획하수량'!$A:$I,4,FALSE) -> 106 | D20: =VLOOKUP($A20,'신설 계획인구 및 계획하수량'!$A:$I,5,FALSE) -> 243 | E20: =VLOOKUP($A20,'신설 계획인구 및 계획하수량'!$A:$I,6,FALSE) -> 242 | F20: =VLOOKUP($A20,'신설 계획인구 및 계획하수량'!$A:$I,8,FALSE) -> 48 | G20: =VLOOKUP($A20,'신설 계획인구 및 계획하수량'!$A:$I,9,FALSE) -> 48 | H20: 3219
A21: 신안 | B21: =VLOOKUP($A21,'신설 계획인구 및 계획하수량'!$A:$I,3,FALSE) -> 110 | C21: =VLOOKUP($A21,'신설 계획인구 및 계획하수량'!$A:$I,4,FALSE) -> 239 | D21: =VLOOKUP($A21,'신설 계획인구 및 계획하수량'!$A:$I,5,FALSE) -> 554 | E21: =VLOOKUP($A21,'신설 계획인구 및 계획하수량'!$A:$I,6,FALSE) -> 553 | F21: =VLOOKUP($A21,'신설 계획인구 및 계획하수량'!$A:$I,8,FALSE) -> 109 | G21: =VLOOKUP($A21,'신설 계획인구 및 계획하수량'!$A:$I,9,FALSE) -> 109 | H21: 5920
A22: 대평 | B22: =VLOOKUP($A22,'신설 계획인구 및 계획하수량'!$A:$I,3,FALSE) -> 60 | C22: =VLOOKUP($A22,'신설 계획인구 및 계획하수량'!$A:$I,4,FALSE) -> 139 | D22: =VLOOKUP($A22,'신설 계획인구 및 계획하수량'!$A:$I,5,FALSE) -> 299 | E22: =VLOOKUP($A22,'신설 계획인구 및 계획하수량'!$A:$I,6,FALSE) -> 295 | F22: =VLOOKUP($A22,'신설 계획인구 및 계획하수량'!$A:$I,8,FALSE) -> 60 | G22: =VLOOKUP($A22,'신설 계획인구 및 계획하수량'!$A:$I,9,FALSE) -> 59 | H22: 3260
A23: 하강 | B23: =VLOOKUP($A23,'신설 계획인구 및 계획하수량'!$A:$I,3,FALSE) -> 120 | C23: =VLOOKUP($A23,'신설 계획인구 및 계획하수량'!$A:$I,4,FALSE) -> 266 | D23: =VLOOKUP($A23,'신설 계획인구 및 계획하수량'!$A:$I,5,FALSE) -> 585 | E23: =VLOOKUP($A23,'신설 계획인구 및 계획하수량'!$A:$I,6,FALSE) -> 581 | F23: =VLOOKUP($A23,'신설 계획인구 및 계획하수량'!$A:$I,8,FALSE) -> 117 | G23: =VLOOKUP($A23,'신설 계획인구 및 계획하수량'!$A:$I,9,FALSE) -> 116 | H23: 8049
A24: 월곡 | B24: =VLOOKUP($A24,'신설 계획인구 및 계획하수량'!$A:$I,3,FALSE) -> 40 | C24: =VLOOKUP($A24,'신설 계획인구 및 계획하수량'!$A:$I,4,FALSE) -> 74 | D24: =VLOOKUP($A24,'신설 계획인구 및 계획하수량'!$A:$I,5,FALSE) -> 156 | E24: =VLOOKUP($A24,'신설 계획인구 및 계획하수량'!$A:$I,6,FALSE) -> 154 | F24: =VLOOKUP($A24,'신설 계획인구 및 계획하수량'!$A:$I,8,FALSE) -> 31 | G24: =VLOOKUP($A24,'신설 계획인구 및 계획하수량'!$A:$I,9,FALSE) -> 31 | H24: 1472
A25: 월매 | B25: =VLOOKUP($A25,'신설 계획인구 및 계획하수량'!$A:$I,3,FALSE) -> 40 | C25: =VLOOKUP($A25,'신설 계획인구 및 계획하수량'!$A:$I,4,FALSE) -> 101 | D25: =VLOOKUP($A25,'신설 계획인구 및 계획하수량'!$A:$I,5,FALSE) -> 189 | E25: =VLOOKUP($A25,'신설 계획인구 및 계획하수량'!$A:$I,6,FALSE) -> 187 | F25: =VLOOKUP($A25,'신설 계획인구 및 계획하수량'!$A:$I,8,FALSE) -> 37 | G25: =VLOOKUP($A25,'신설 계획인구 및 계획하수량'!$A:$I,9,FALSE) -> 37 | H25: 4000
A26: 옥동 | B26: =VLOOKUP($A26,'신설 계획인구 및 계획하수량'!$A:$I,3,FALSE) -> 60 | C26: =VLOOKUP($A26,'신설 계획인구 및 계획하수량'!$A:$I,4,FALSE) -> 180 | D26: =VLOOKUP($A26,'신설 계획인구 및 계획하수량'!$A:$I,5,FALSE) -> 288 | E26: =VLOOKUP($A26,'신설 계획인구 및 계획하수량'!$A:$I,6,FALSE) -> 285 | F26: =VLOOKUP($A26,'신설 계획인구 및 계획하수량'!$A:$I,8,FALSE) -> 58 | G26: =VLOOKUP($A26,'신설 계획인구 및 계획하수량'!$A:$I,9,FALSE) -> 58 | H26: 5816

Sheet 신설 계획인구 및 계획하수량
A1: 5.2 소규모 하수도 대상마을 계획인구 및 계획하수량
A2: 시설명 | B2: 마을명 | C2: 시설용량 (㎥/일) | D2: 세대수 (세대) | E2: 계획인구(인) | G2: 생활오수 원단위 (Lpcd) | H2: 계획하수량(㎥/일)
E3: 2020년 | F3: 2025년 | H3: 2020년 | I3: 2025년
A4: 황소 | B4: 고삽 | C4: =ROUNDUP(I4,-1) -> 60 | D4: =VLOOKUP($B4,[3]계획인구!$C$1:$AA$65536,12,FALSE) -> 108 | E4: =VLOOKUP($B4,[3]계획인구!$C$1:$AA$65536,22,FALSE) -> 284 | F4: =VLOOKUP($B4,[3]계획인구!$C$1:$AA$65536,23,FALSE) -> 282 | G4: 200 | H4: =ROUND(E4*$G4/1000,0) -> 57 | I4: =ROUND(F4*$G4/1000,0) -> 56
A5: 봉곡 | B5: 소 계 | C5: =ROUNDUP(I5,-1) -> 140 | D5: =SUM(D6:D9) -> 311 | E5: =SUM(E6:E9) -> 682 | F5: 675 | H5: =SUM(H6:H9) -> 137 | I5: 135
B6: 씰미 | D6: =VLOOKUP($B6,[3]계획인구!$C$1:$AA$65536,12,FALSE) -> 124 | E6: =VLOOKUP($B6,[3]계획인구!$C$1:$AA$65536,22,FALSE) -> 264 | F6: =VLOOKUP($B6,[3]계획인구!$C$1:$AA$65536,23,FALSE) -> 262 | G6: 200 | H6: =ROUND(E6*$G6/1000,0) -> 53 | I6: =ROUND(F6*$G6/1000,0) -> 52
B7: 숲페 | D7: =VLOOKUP($B7,[3]계획인구!$C$1:$AA$65536,12,FALSE) -> 19 | E7: =VLOOKUP($B7,[3]계획인구!$C$1:$AA$65536,22,FALSE) -> 30 | F7: =VLOOKUP($B7,[3]계획인구!$C$1:$AA$65536,23,FALSE) -> 29 | G7: 200 | H7: 6 | I7: 6
B8: 샙띠 | D8: =VLOOKUP($B8,[3]계획인구!$C$1:$AA$65536,12,FALSE) -> 158 | E8: =VLOOKUP($B8,[3]계획인구!$C$1:$AA$65536,22,FALSE) -> 364 | F8: =VLOOKUP($B8,[3]계획인구!$C$1:$AA$65536,23,FALSE) -> 360 | G8: 200 | H8: =ROUND(E8*$G8/1000,0) -> 73 | I8: =ROUND(F8*$G8/1000,0) -> 72
B9: 우봉골 | D9: =VLOOKUP($B9,[3]계획인구!$C$1:$AA$65536,12,FALSE) -> 10 | E9: =VLOOKUP($B9,[3]계획인구!$C$1:$AA$65536,22,FALSE) -> 24 | F9: =VLOOKUP($B9,[3]계획인구!$C$1:$AA$65536,23,FALSE) -> 24 | G9: 200 | H9: 5 | I9: 5
A10: 운곡 | B10: 등골 | C10: =ROUNDUP(I10,-1) -> 70 | D10: =VLOOKUP($B10,[3]계획인구!$C$1:$AA$65536,12,FALSE) -> 152 | E10: =VLOOKUP($B10,[3]계획인구!$C$1:$AA$65536,22,FALSE) -> 312 | F10: =VLOOKUP($B10,[3]계획인구!$C$1:$AA$65536,23,FALSE) -> 309 | G10: 200 | H10: =ROUND(E10*$G10/1000,0) -> 62 | I10: =ROUND(F10*$G10/1000,0) -> 62
A11: 초곡 | B11: 초실 | C11: 50 | D11: =VLOOKUP($B11,[3]계획인구!$C$1:$AA$65536,12,FALSE) -> 126 | E11: =VLOOKUP($B11,[3]계획인구!$C$1:$AA$65536,22,FALSE) -> 248 | F11: =VLOOKUP($B11,[3]계획인구!$C$1:$AA$65536,23,FALSE) -> 245 | G11: 200 | H11: 50 | I11: 49
A12: 구야 | B12: 소 계 | C12: =ROUNDUP(I12,-1) -> 110 | D12: =SUM(D13:D14) -> 242 | E12: =SUM(E13:E14) -> 548 | F12: 543 | H12: =SUM(H13:H14) -> 110 | I12: 109
B13: 나아골 | D13: =VLOOKUP($B13,[3]계획인구!$C$1:$AA$65536,12,FALSE) -> 122 | E13: =VLOOKUP($B13,[3]계획인구!$C$1:$AA$65536,22,FALSE) -> 293 | F13: =VLOOKUP($B13,[3]계획인구!$C$1:$AA$65536,23,FALSE) -> 290 | G13: 200 | H13: =ROUND(E13*$G13/1000,0) -> 59 | I13: =ROUND(F13*$G13/1000,0) -> 58
B14: 구례실 | D14: =VLOOKUP($B14,[3]계획인구!$C$1:$AA$65536,12,FALSE) -> 120 | E14: =VLOOKUP($B14,[3]계획인구!$C$1:$AA$65536,22,FALSE) -> 255 | F14: =VLOOKUP($B14,[3]계획인구!$C$1:$AA$65536,23,FALSE) -> 253 | G14: 200 | H14: 51 | I14: 51
A15: 문무 | B15: 여무 | C15: 50 | D15: =VLOOKUP($B15,[3]계획인구!$C$1:$AA$65536,12,FALSE) -> 117 | E15: =VLOOKUP($B15,[3]계획인구!$C$1:$AA$65536,22,FALSE) -> 222 | F15: =VLOOKUP($B15,[3]계획인구!$C$1:$AA$65536,23,FALSE) -> 220 | G15: 200 | H15: =ROUND(E15*$G15/1000,0) -> 44 | I15: 44
A16: 남곡 | B16: 남실 | C16: 50 | D16: =VLOOKUP($B16,[3]계획인구!$C$1:$AA$65536,12,FALSE) -> 129 | E16: =VLOOKUP($B16,[3]계획인구!$C$1:$AA$65536,22,FALSE) -> 246 | F16: =VLOOKUP($B16,[3]계획인구!$C$1:$AA$65536,23,FALSE) -> 243 | G16: 200 | H16: 49 | I16: 49
A17: 던돌마 | B17: 소 계 | C17: 70 | D17: =SUM(D18:D19) -> 138 | E17: 306 | F17: 304 | H17: 61 | I17: 61
B18: 가매실 | D18: =VLOOKUP($B18,[3]계획인구!$C$1:$AA$65536,12,FALSE) -> 47 | E18: =VLOOKUP($B18,[3]계획인구!$C$1:$AA$65536,22,FALSE) -> 121 | F18: =VLOOKUP($B18,[3]계획인구!$C$1:$AA$65536,23,FALSE) -> 120 | G18: 200 | H18: =ROUND(E18*$G18/1000,0) -> 24 | I18: =ROUND(F18*$G18/1000,0) -> 24
B19: 삼봉 | D19: =VLOOKUP($B19,[3]계획인구!$C$1:$AA$65536,12,FALSE) -> 91 | E19: =VLOOKUP($B19,[3]계획인구!$C$1:$AA$65536,22,FALSE) -> 185 | F19: =VLOOKUP($B19,[3]계획인구!$C$1:$AA$65536,23,FALSE) -> 184 | G19: 200 | H19: =ROUND(E19*$G19/1000,0) -> 37 | I19: =ROUND(F19*$G19/1000,0) -> 37
A20: 덕남 | B20: 소 계 | C20: =ROUNDUP(I20,-1) -> 170 | D20: =SUM(D21:D27) -> 408 | E20: =SUM(E21:E27) -> 846 | F20: 838 | H20: =SUM(H21:H27) -> 169 | I20: 167
B21: 신풍 | D21: =VLOOKUP($B21,[3]계획인구!$C$1:$AA$65536,12,FALSE) -> 90 | E21: =VLOOKUP($B21,[3]계획인구!$C$1:$AA$65536,22,FALSE) -> 188 | F21: =VLOOKUP($B21,[3]계획인구!$C$1:$AA$65536,23,FALSE) -> 186 | G21: 200 | H21: =ROUND(E21*$G21/1000,0) -> 38 | I21: =ROUND(F21*$G21/1000,0) -> 37
B22: 시술 | D22: =VLOOKUP($B22,[3]계획인구!$C$1:$AA$65536,12,FALSE) -> 94 | E22: =VLOOKUP($B22,[3]계획인구!$C$1:$AA$65536,22,FALSE) -> 183 | F22: =VLOOKUP($B22,[3]계획인구!$C$1:$AA$65536,23,FALSE) -> 182 | G22: 200 | H22: =ROUND(E22*$G22/1000,0) -> 37 | I22: =ROUND(F22*$G22/1000,0) -> 36
B23: 안마 | D23: =VLOOKUP($B23,[3]계획인구!$C$1:$AA$65536,12,FALSE) -> 61 | E23: =VLOOKUP($B23,[3]계획인구!$C$1:$AA$65536,22,FALSE) -> 126 | F23: =VLOOKUP($B23,[3]계획인구!$C$1:$AA$65536,23,FALSE) -> 125 | G23: 200 | H23: =ROUND(E23*$G23/1000,0) -> 25 | I23: 25
B24: 완동 | D24: =VLOOKUP($B24,[3]계획인구!$C$1:$AA$65536,12,FALSE) -> 56 | E24: =VLOOKUP($B24,[3]계획인구!$C$1:$AA$65536,22,FALSE) -> 126 | F24: =VLOOKUP($B24,[3]계획인구!$C$1:$AA$65536,23,FALSE) -> 125 | G24: 200 | H24: 25 | I24: 25
B25: 북성 | D25: =VLOOKUP($B25,[3]계획인구!$C$1:$AA$65536,12,FALSE) -> 27 | E25: =VLOOKUP($B25,[3]계획인구!$C$1:$AA$65536,22,FALSE) -> 54 | F25: =VLOOKUP($B25,[3]계획인구!$C$1:$AA$65536,23,FALSE) -> 53 | G25: 200 | H25: 11 | I25: 11
B26: 명천 | D26: =VLOOKUP($B26,[3]계획인구!$C$1:$AA$65536,12,FALSE) -> 54 | E26: =VLOOKUP($B26,[3]계획인구!$C$1:$AA$65536,22,FALSE) -> 117 | F26: =VLOOKUP($B26,[3]계획인구!$C$1:$AA$65536,23,FALSE) -> 116 | G26: 200 | H26: 23 | I26: 23
B27: 명창 | D27: =VLOOKUP($B27,[3]계획인구!$C$1:$AA$65536,12,FALSE) -> 26 | E27: =VLOOKUP($B27,[3]계획인구!$C$1:$AA$65536,22,FALSE) -> 52 | F27: =VLOOKUP($B27,[3]계획인구!$C$1:$AA$65536,23,FALSE) -> 51 | G27: 200 | H27: 10 | I27: 10
A28: 대양 | B28: 소 계 | C28: =ROUNDUP(I28,-1) -> 40 | D28: =SUM(D29:D30) -> 95 | E28: =SUM(E29:E30) -> 195 | F28: 194 | H28: =SUM(H29:H30) -> 39 | I28: 39
B29: 대양 | D29: =VLOOKUP($B29,[3]계획인구!$C$1:$AA$65536,12,FALSE) -> 51 | E29: =VLOOKUP($B29,[3]계획인구!$C$1:$AA$65536,22,FALSE) -> 109 | F29: =VLOOKUP($B29,[3]계획인구!$C$1:$AA$65536,23,FALSE) -> 108 | G29: 200 | H29: =ROUND(E29*$G29/1000,0) -> 22 | I29: 22
B30: 천동 | D30: =VLOOKUP($B30,[3]계획인구!$C$1:$AA$65536,12,FALSE) -> 44 | E30: =VLOOKUP($B30,[3]계획인구!$C$1:$AA$65536,22,FALSE) -> 86 | F30: =VLOOKUP($B30,[3]계획인구!$C$1:$AA$65536,23,FALSE) -> 86 | G30: 200 | H30: 17 | I30: 17
A31: 옥율 | B31: 노리기 | C31: =ROUNDUP(I31,-1) -> 50 | D31: =VLOOKUP($B31,[3]계획인구!$C$1:$AA$65536,12,FALSE) -> 103 | E31: =VLOOKUP($B31,[3]계획인구!$C$1:$AA$65536,22,FALSE) -> 250 | F31: =VLOOKUP($B31,[3]계획인구!$C$1:$AA$65536,23,FALSE) -> 247 | G31: 200 | H31: 50 | I31: 49
A32: 능치 | B32: 소 계 | C32: =ROUNDUP(I32,-1) -> 150 | D32: =SUM(D33:D36) -> 374 | E32: =SUM(E33:E36) -> 760 | F32: =SUM(F33:F36) -> 754 | H32: =SUM(H33:H36) -> 153 | I32: =SUM(I33:I36) -> 150
B33: 능청 | D33: =VLOOKUP($B33,[3]계획인구!$C$1:$AA$65536,12,FALSE) -> 25 | E33: =VLOOKUP($B33,[3]계획인구!$C$1:$AA$65536,22,FALSE) -> 61 | F33: =VLOOKUP($B33,[3]계획인구!$C$1:$AA$65536,23,FALSE) -> 61 | G33: 200 | H33: =ROUND(E33*$G33/1000,0) -> 12 | I33: 12
B34: 도치랑 | D34: =VLOOKUP($B34,[3]계획인구!$C$1:$AA$65536,12,FALSE) -> 73 | E34: =VLOOKUP($B34,[3]계획인구!$C$1:$AA$65536,22,FALSE) -> 118 | F34: =VLOOKUP($B34,[3]계획인구!$C$1:$AA$65536,23,FALSE) -> 117 | G34: 200 | H34: 24 | I34: 23
B35: 용문산 | D35: =VLOOKUP($B35,[3]계획인구!$C$1:$AA$65536,12,FALSE) -> 136 | E35: =VLOOKUP($B35,[3]계획인구!$C$1:$AA$65536,22,FALSE) -> 218 | F35: =VLOOKUP($B35,[3]계획인구!$C$1:$AA$65536,23,FALSE) -> 216 | G35: 200 | H35: 44 | I35: 43
B36: 능점 | D36: =VLOOKUP($B36,[3]계획인구!$C$1:$AA$65536,12,FALSE) -> 140 | E36: =VLOOKUP($B36,[3]계획인구!$C$1:$AA$65536,22,FALSE) -> 363 | F36: =VLOOKUP($B36,[3]계획인구!$C$1:$AA$65536,23,FALSE) -> 360 | G36: 200 | H36: 73 | I36: 72
A37: 도암 | B37: 소 계 | C37: =ROUNDUP(I37,-1) -> 130 | D37: =SUM(D38:D43) -> 299 | E37: =SUM(E38:E43) -> 626 | F37: =SUM(F38:F43) -> 621 | H37: =SUM(H38:H43) -> 124 | I37: =SUM(I38:I43) -> 124
B38: 구사리 | D38: =VLOOKUP($B38,[3]계획인구!$C$1:$AA$65536,12,FALSE) -> 68 | E38: =VLOOKUP($B38,[3]계획인구!$C$1:$AA$65536,22,FALSE) -> 134 | F38: =VLOOKUP($B38,[3]계획인구!$C$1:$AA$65536,23,FALSE) -> 133 | G38: 200 | H38: =ROUND(E38*$G38/1000,0) -> 27 | I38: 27
B39: 본리(어모) | D39: =VLOOKUP($B39,[3]계획인구!$C$1:$AA$65536,12,FALSE) -> 45 | E39: =VLOOKUP($B39,[3]계획인구!$C$1:$AA$65536,22,FALSE) -> 110 | F39: =VLOOKUP($B39,[3]계획인구!$C$1:$AA$65536,23,FALSE) -> 109 | G39: 200 | H39: 22 | I39: 22
B40: 신기 | D40: =VLOOKUP($B40,[3]계획인구!$C$1:$AA$65536,12,FALSE) -> 27 | E40: =VLOOKUP($B40,[3]계획인구!$C$1:$AA$65536,22,FALSE) -> 62 | F40: =VLOOKUP($B40,[3]계획인구!$C$1:$AA$65536,23,FALSE) -> 62 | G40: 200 | H40: 12 | I40: 12
B41: 은석 | D41: =VLOOKUP($B41,[3]계획인구!$C$1:$AA$65536,12,FALSE) -> 38 | E41: =VLOOKUP($B41,[3]계획인구!$C$1:$AA$65536,22,FALSE) -> 76 | F41: =VLOOKUP($B41,[3]계획인구!$C$1:$AA$65536,23,FALSE) -> 75 | G41: 200 | H41: 15 | I41: 15
B42: 봉황 | D42: =VLOOKUP($B42,[3]계획인구!$C$1:$AA$65536,12,FALSE) -> 43 | E42: =VLOOKUP($B42,[3]계획인구!$C$1:$AA$65536,22,FALSE) -> 77 | F42: =VLOOKUP($B42,[3]계획인구!$C$1:$AA$65536,23,FALSE) -> 76 | G42: 200 | H42: 15 | I42: 15
B43: 동리 | D43: =VLOOKUP($B43,[3]계획인구!$C$1:$AA$65536,12,FALSE) -> 78 | E43: =VLOOKUP($B43,[3]계획인구!$C$1:$AA$65536,22,FALSE) -> 167 | F43: =VLOOKUP($B43,[3]계획인구!$C$1:$AA$65536,23,FALSE) -> 166 | G43: 200 | H43: 33 | I43: 33
A44: 태화 | B44: 소 계 | C44: =ROUNDUP(I44,-1) -> 90 | D44: =SUM(D45:D48) -> 177 | E44: =SUM(E45:E48) -> 425 | F44: 420 | H44: 85 | I44: 85
B45: 평촌 | D45: =VLOOKUP($B45,[3]계획인구!$C$1:$AA$65536,12,FALSE) -> 48 | E45: =VLOOKUP($B45,[3]계획인구!$C$1:$AA$65536,22,FALSE) -> 125 | F45: =VLOOKUP($B45,[3]계획인구!$C$1:$AA$65536,23,FALSE) -> 124 | G45: 200 | H45: =ROUND(E45*$G45/1000,0) -> 25 | I45: 25
B46: 창촌 | D46: =VLOOKUP($B46,[3]계획인구!$C$1:$AA$65536,12,FALSE) -> 50 | E46: =VLOOKUP($B46,[3]계획인구!$C$1:$AA$65536,22,FALSE) -> 130 | F46: =VLOOKUP($B46,[3]계획인구!$C$1:$AA$65536,23,FALSE) -> 128 | G46: 200 | H46: 26 | I46: 26
B47: 중리 | D47: =VLOOKUP($B47,[3]계획인구!$C$1:$AA$65536,12,FALSE) -> 42 | E47: =VLOOKUP($B47,[3]계획인구!$C$1:$AA$65536,22,FALSE) -> 96 | F47: =VLOOKUP($B47,[3]계획인구!$C$1:$AA$65536,23,FALSE) -> 95 | G47: 200 | H47: 19 | I47: 19
B48: 상리 | D48: =VLOOKUP($B48,[3]계획인구!$C$1:$AA$65536,12,FALSE) -> 37 | E48: =VLOOKUP($B48,[3]계획인구!$C$1:$AA$65536,22,FALSE) -> 74 | F48: =VLOOKUP($B48,[3]계획인구!$C$1:$AA$65536,23,FALSE) -> 73 | G48: 200 | H48: 15 | I48: 15
A49: 신암 | B49: 소 계 | C49: =ROUNDUP(I49,-1) -> 90 | D49: =SUM(D50:D54) -> 202 | E49: =SUM(E50:E54) -> 416 | F49: 414 | H49: 83 | I49: 82
B50: 신촌(봉산) | D50: =VLOOKUP($B50,[3]계획인구!$C$1:$AA$65536,12,FALSE) -> 85 | E50: =VLOOKUP($B50,[3]계획인구!$C$1:$AA$65536,22,FALSE) -> 178 | F50: =VLOOKUP($B50,[3]계획인구!$C$1:$AA$65536,23,FALSE) -> 177 | G50: 200 | H50: =ROUND(E50*$G50/1000,0) -> 36 | I50: 35
B51: 고도암 | D51: =VLOOKUP($B51,[3]계획인구!$C$1:$AA$65536,12,FALSE) -> 31 | E51: =VLOOKUP($B51,[3]계획인구!$C$1:$AA$65536,22,FALSE) -> 65 | F51: =VLOOKUP($B51,[3]계획인구!$C$1:$AA$65536,23,FALSE) -> 65 | G51: 200 | H51: 13 | I51: 13
B52: 외가성 | D52: =VLOOKUP($B52,[3]계획인구!$C$1:$AA$65536,12,FALSE) -> 40 | E52: =VLOOKUP($B52,[3]계획인구!$C$1:$AA$65536,22,FALSE) -> 75 | F52: =VLOOKUP($B52,[3]계획인구!$C$1:$AA$65536,23,FALSE) -> 74 | G52: 200 | H52: 15 | I52: 15
B53: 내가성 | D53: =VLOOKUP($B53,[3]계획인구!$C$1:$AA$65536,12,FALSE) -> 13 | E53: =VLOOKUP($B53,[3]계획인구!$C$1:$AA$65536,22,FALSE) -> 37 | F53: =VLOOKUP($B53,[3]계획인구!$C$1:$AA$65536,23,FALSE) -> 37 | G53: 200 | H53: 7 | I53: 7
B54: 신기(봉산) | D54: =VLOOKUP($B54,[3]계획인구!$C$1:$AA$65536,12,FALSE) -> 33 | E54: =VLOOKUP($B54,[3]계획인구!$C$1:$AA$65536,22,FALSE) -> 61 | F54: =VLOOKUP($B54,[3]계획인구!$C$1:$AA$65536,23,FALSE) -> 61 | G54: 200 | H54: 12 | I54: 12
A55: 광기 | B55: 소 계 | C55: =ROUNDUP(I55,-1) -> 110 | D55: =SUM(D56:D57) -> 215 | E55: =SUM(E56:E57) -> 510 | F55: 505 | H55: =SUM(H56:H57) -> 102 | I55: 101
B56: 기동 | D56: =VLOOKUP($B56,[3]계획인구!$C$1:$AA$65536,12,FALSE) -> 126 | E56: =VLOOKUP($B56,[3]계획인구!$C$1:$AA$65536,22,FALSE) -> 291 | F56: =VLOOKUP($B56,[3]계획인구!$C$1:$AA$65536,23,FALSE) -> 288 | G56: 200 | H56: =ROUND(E56*$G56/1000,0) -> 58 | I56: =ROUND(F56*$G56/1000,0) -> 58
B57: 내동 | D57: =VLOOKUP($B57,[3]계획인구!$C$1:$AA$65536,12,FALSE) -> 89 | E57: =VLOOKUP($B57,[3]계획인구!$C$1:$AA$65536,22,FALSE) -> 219 | F57: =VLOOKUP($B57,[3]계획인구!$C$1:$AA$65536,23,FALSE) -> 217 | G57: 200 | H57: 44 | I57: 43
A58: 무안 | B58: 소 계 | C58: =ROUNDUP(I58,-1) -> 50 | D58: =SUM(D59:D63) -> 106 | E58: =SUM(E59:E63) -> 243 | F58: =SUM(F59:F63) -> 242 | H58: =SUM(H59:H63) -> 48 | I58: =SUM(I59:I63) -> 48
B59: 외안 | D59: =VLOOKUP($B59,[3]계획인구!$C$1:$AA$65536,12,FALSE) -> 50 | E59: =VLOOKUP($B59,[3]계획인구!$C$1:$AA$65536,22,FALSE) -> 114 | F59: =VLOOKUP($B59,[3]계획인구!$C$1:$AA$65536,23,FALSE) -> 113 | G59: 200 | H59: =ROUND(E59*$G59/1000,0) -> 23 | I59: 23
B60: 기산 | D60: =VLOOKUP($B60,[3]계획인구!$C$1:$AA$65536,12,FALSE) -> 5 | E60: =VLOOKUP($B60,[3]계획인구!$C$1:$AA$65536,22,FALSE) -> 12 | F60: =VLOOKUP($B60,[3]계획인구!$C$1:$AA$65536,23,FALSE) -> 12 | G60: 200 | H60: 2 | I60: 2
B61: 삼거리 | D61: =VLOOKUP($B61,[3]계획인구!$C$1:$AA$65536,12,FALSE) -> 18 | E61: =VLOOKUP($B61,[3]계획인구!$C$1:$AA$65536,22,FALSE) -> 40 | F61: =VLOOKUP($B61,[3]계획인구!$C$1:$AA$65536,23,FALSE) -> 40 | G61: 200 | H61: 8 | I61: 8
B62: 무릉 | D62: =VLOOKUP($B62,[3]계획인구!$C$1:$AA$65536,12,FALSE) -> 26 | E62: =VLOOKUP($B62,[3]계획인구!$C$1:$AA$65536,22,FALSE) -> 60 | F62: =VLOOKUP($B62,[3]계획인구!$C$1:$AA$65536,23,FALSE) -> 60 | G62: 200 | H62: 12 | I62: 12
B63: 통정 | D63: =VLOOKUP($B63,[3]계획인구!$C$1:$AA$65536,12,FALSE) -> 7 | E63: =VLOOKUP($B63,[3]계획인구!$C$1:$AA$65536,22,FALSE) -> 17 | F63: =VLOOKUP($B63,[3]계획인구!$C$1:$AA$65536,23,FALSE) -> 17 | G63: 200 | H63: 3 | I63: 3
A64: 신안 | B64: 소 계 | C64: =ROUNDUP(I64,-1) -> 110 | D64: =SUM(D65:D73) -> 239 | E64: =SUM(E65:E73) -> 554 | F64: 553 | H64: 109 | I64: 109
B65: 죽정 | D65: =VLOOKUP($B65,[3]계획인구!$C$1:$AA$65536,12,FALSE) -> 31 | E65: =VLOOKUP($B65,[3]계획인구!$C$1:$AA$65536,22,FALSE) -> 86 | F65: =VLOOKUP($B65,[3]계획인구!$C$1:$AA$65536,23,FALSE) -> 86 | G65: 200 | H65: =ROUND(E65*$G65/1000,0) -> 17 | I65: =ROUND(F65*$G65/1000,0) -> 17
B66: 중동 | D66: =VLOOKUP($B66,[3]계획인구!$C$1:$AA$65536,12,FALSE) -> 41 | E66: =VLOOKUP($B66,[3]계획인구!$C$1:$AA$65536,22,FALSE) -> 87 | F66: =VLOOKUP($B66,[3]계획인구!$C$1:$AA$65536,23,FALSE) -> 87 | G66: 200 | H66: 17 | I66: 17
B67: 뒤지골 | D67: =VLOOKUP($B67,[3]계획인구!$C$1:$AA$65536,12,FALSE) -> 21 | E67: =VLOOKUP($B67,[3]계획인구!$C$1:$AA$65536,22,FALSE) -> 37 | F67: =VLOOKUP($B67,[3]계획인구!$C$1:$AA$65536,23,FALSE) -> 37 | G67: 200 | H67: 7 | I67: 7
B68: 안사래 | D68: =VLOOKUP($B68,[3]계획인구!$C$1:$AA$65536,12,FALSE) -> 41 | E68: =VLOOKUP($B68,[3]계획인구!$C$1:$AA$65536,22,FALSE) -> 94 | F68: =VLOOKUP($B68,[3]계획인구!$C$1:$AA$65536,23,FALSE) -> 93 | G68: 200 | H68: 19 | I68: 19
B69: 밭새래 | D69: =VLOOKUP($B69,[3]계획인구!$C$1:$AA$65536,12,FALSE) -> 33 | E69: =VLOOKUP($B69,[3]계획인구!$C$1:$AA$65536,22,FALSE) -> 86 | F69: =VLOOKUP($B69,[3]계획인구!$C$1:$AA$65536,23,FALSE) -> 86 | G69: 200 | H69: 17 | I69: 17
B70: 저먹골 | D70: =VLOOKUP($B70,[3]계획인구!$C$1:$AA$65536,12,FALSE) -> 10 | E70: =VLOOKUP($B70,[3]계획인구!$C$1:$AA$65536,22,FALSE) -> 27 | F70: =VLOOKUP($B70,[3]계획인구!$C$1:$AA$65536,23,FALSE) -> 27 | G70: 200 | H70: 5 | I70: 5
B71: 안서동 | D71: =VLOOKUP($B71,[3]계획인구!$C$1:$AA$65536,12,FALSE) -> 3 | E71: =VLOOKUP($B71,[3]계획인구!$C$1:$AA$65536,22,FALSE) -> 7 | F71: =VLOOKUP($B71,[3]계획인구!$C$1:$AA$65536,23,FALSE) -> 7 | G71: 200 | H71: 1 | I71: 1
B72: 지동 | D72: =VLOOKUP($B72,[3]계획인구!$C$1:$AA$65536,12,FALSE) -> 38 | E72: =VLOOKUP($B72,[3]계획인구!$C$1:$AA$65536,22,FALSE) -> 84 | F72: =VLOOKUP($B72,[3]계획인구!$C$1:$AA$65536,23,FALSE) -> 84 | G72: 200 | H72: 17 | I72: 17
B73: 새터(조마) | D73: =VLOOKUP($B73,[3]계획인구!$C$1:$AA$65536,12,FALSE) -> 21 | E73: =VLOOKUP($B73,[3]계획인구!$C$1:$AA$65536,22,FALSE) -> 46 | F73: =VLOOKUP($B73,[3]계획인구!$C$1:$AA$65536,23,FALSE) -> 46 | G73: 200 | H73: 9 | I73: 9
A74: 대평 | B74: 소 계 | C74: =ROUNDUP(I74,-1) -> 60 | D74: =SUM(D75:D77) -> 139 | E74: =SUM(E75:E77) -> 299 | F74: 295 | H74: 60 | I74: 59
B75: 성궁 | D75: =VLOOKUP($B75,[3]계획인구!$C$1:$AA$65536,12,FALSE) -> 41 | E75: =VLOOKUP($B75,[3]계획인구!$C$1:$AA$65536,22,FALSE) -> 107 | F75: =VLOOKUP($B75,[3]계획인구!$C$1:$AA$65536,23,FALSE) -> 107 | G75: 200 | H75: =ROUND(E75*$G75/1000,0) -> 21 | I75: 21
B76: 가곡 | D76: =VLOOKUP($B76,[3]계획인구!$C$1:$AA$65536,12,FALSE) -> 18 | E76: =VLOOKUP($B76,[3]계획인구!$C$1:$AA$65536,22,FALSE) -> 48 | F76: =VLOOKUP($B76,[3]계획인구!$C$1:$AA$65536,23,FALSE) -> 48 | G76: 200 | H76: 10 | I76: 10
B77: 대평 | D77: =VLOOKUP($B77,[3]계획인구!$C$1:$AA$65536,12,FALSE) -> 80 | E77: =VLOOKUP($B77,[3]계획인구!$C$1:$AA$65536,22,FALSE) -> 144 | F77: =VLOOKUP($B77,[3]계획인구!$C$1:$AA$65536,23,FALSE) -> 140 | G77: 200 | H77: 29 | I77: 28
A78: 하강 | B78: 소 계 | C78: =ROUNDUP(I78,-1) -> 120 | D78: =SUM(D79:D86) -> 266 | E78: =SUM(E79:E86) -> 585 | F78: 581 | H78: 117 | I78: 116
B79: 모리이 | D79: =VLOOKUP($B79,[3]계획인구!$C$1:$AA$65536,12,FALSE) -> 28 | E79: =VLOOKUP($B79,[3]계획인구!$C$1:$AA$65536,22,FALSE) -> 65 | F79: =VLOOKUP($B79,[3]계획인구!$C$1:$AA$65536,23,FALSE) -> 65 | G79: 200 | H79: =ROUND(E79*$G79/1000,0) -> 13 | I79: =ROUND(F79*$G79/1000,0) -> 13
B80: 강성 | D80: =VLOOKUP($B80,[3]계획인구!$C$1:$AA$65536,12,FALSE) -> 34 | E80: =VLOOKUP($B80,[3]계획인구!$C$1:$AA$65536,22,FALSE) -> 61 | F80: =VLOOKUP($B80,[3]계획인구!$C$1:$AA$65536,23,FALSE) -> 61 | G80: 200 | H80: 12 | I80: 12
B81: 서당마 | D81: =VLOOKUP($B81,[3]계획인구!$C$1:$AA$65536,12,FALSE) -> 31 | E81: =VLOOKUP($B81,[3]계획인구!$C$1:$AA$65536,22,FALSE) -> 56 | F81: =VLOOKUP($B81,[3]계획인구!$C$1:$AA$65536,23,FALSE) -> 55 | G81: 200 | H81: 11 | I81: 11
B82: 관동 | D82: =VLOOKUP($B82,[3]계획인구!$C$1:$AA$65536,12,FALSE) -> 29 | E82: =VLOOKUP($B82,[3]계획인구!$C$1:$AA$65536,22,FALSE) -> 79 | F82: =VLOOKUP($B82,[3]계획인구!$C$1:$AA$65536,23,FALSE) -> 78 | G82: 200 | H82: 16 | I82: 16
B83: 황각 | D83: =VLOOKUP($B83,[3]계획인구!$C$1:$AA$65536,12,FALSE) -> 79 | E83: =VLOOKUP($B83,[3]계획인구!$C$1:$AA$65536,22,FALSE) -> 183 | F83: =VLOOKUP($B83,[3]계획인구!$C$1:$AA$65536,23,FALSE) -> 182 | G83: 200 | H83: 37 | I83: 36
B84: 냉수정 | D84: =VLOOKUP($B84,[3]계획인구!$C$1:$AA$65536,12,FALSE) -> 11 | E84: =VLOOKUP($B84,[3]계획인구!$C$1:$AA$65536,22,FALSE) -> 24 | F84: =VLOOKUP($B84,[3]계획인구!$C$1:$AA$65536,23,FALSE) -> 24 | G84: 200 | H84: 5 | I84: 5
B85: 양지마 | D85: =VLOOKUP($B85,[3]계획인구!$C$1:$AA$65536,12,FALSE) -> 11 | E85: =VLOOKUP($B85,[3]계획인구!$C$1:$AA$65536,22,FALSE) -> 21 | F85: =VLOOKUP($B85,[3]계획인구!$C$1:$AA$65536,23,FALSE) -> 21 | G85: 200 | H85: 4 | I85: 4
B86: 모산(구성) | D86: =VLOOKUP($B86,[3]계획인구!$C$1:$AA$65536,12,FALSE) -> 43 | E86: =VLOOKUP($B86,[3]계획인구!$C$1:$AA$65536,22,FALSE) -> 96 | F86: =VLOOKUP($B86,[3]계획인구!$C$1:$AA$65536,23,FALSE) -> 95 | G86: 200 | H86: 19 | I86: 19
A87: 월곡 | B87: 다레실 | C87: =ROUNDUP(I87,-1) -> 40 | D87: =VLOOKUP($B87,[3]계획인구!$C$1:$AA$65536,12,FALSE) -> 74 | E87: =VLOOKUP($B87,[3]계획인구!$C$1:$AA$65536,22,FALSE) -> 156 | F87: =VLOOKUP($B87,[3]계획인구!$C$1:$AA$65536,23,FALSE) -> 154 | G87: 200 | H87: =ROUND(E87*$G87/1000,0) -> 31 | I87: =ROUND(F87*$G87/1000,0) -> 31
A88: 월매 | B88: 소 계 | C88: 40 | D88: =SUM(D89:D91) -> 101 | E88: =SUM(E89:E91) -> 189 | F88: 187 | H88: =SUM(H89:H91) -> 37 | I88: 37
B89: 화전 | D89: =VLOOKUP($B89,[3]계획인구!$C$1:$AA$65536,12,FALSE) -> 40 | E89: =VLOOKUP($B89,[3]계획인구!$C$1:$AA$65536,22,FALSE) -> 76 | F89: =VLOOKUP($B89,[3]계획인구!$C$1:$AA$65536,23,FALSE) -> 75 | G89: 200 | H89: =ROUND(E89*$G89/1000,0) -> 15 | I89: 15
B90: 광신원 | D90: =VLOOKUP($B90,[3]계획인구!$C$1:$AA$65536,12,FALSE) -> 39 | E90: =VLOOKUP($B90,[3]계획인구!$C$1:$AA$65536,22,FALSE) -> 72 | F90: =VLOOKUP($B90,[3]계획인구!$C$1:$AA$65536,23,FALSE) -> 71 | G90: 200 | H90: 14 | I90: 14
B91: 달매 | D91: =VLOOKUP($B91,[3]계획인구!$C$1:$AA$65536,12,FALSE) -> 22 | E91: =VLOOKUP($B91,[3]계획인구!$C$1:$AA$65536,22,FALSE) -> 41 | F91: =VLOOKUP($B91,[3]계획인구!$C$1:$AA$65536,23,FALSE) -> 41 | G91: 200 | H91: 8 | I91: 8
A92: 옥동 | B92: 소 계 | C92: =ROUNDUP(I92,-1) -> 60 | D92: =SUM(D93:D96) -> 180 | E92: =SUM(E93:E96) -> 288 | F92: =SUM(F93:F96) -> 285 | H92: =SUM(H93:H96) -> 58 | I92: =SUM(I93:I96) -> 58
B93: 금포 | D93: =VLOOKUP($B93,[3]계획인구!$C$1:$AA$65536,12,FALSE) -> 32 | E93: =VLOOKUP($B93,[3]계획인구!$C$1:$AA$65536,22,FALSE) -> 35 | F93: =VLOOKUP($B93,[3]계획인구!$C$1:$AA$65536,23,FALSE) -> 34 | G93: 200 | H93: =ROUND(E93*$G93/1000,0) -> 7 | I93: 7
B94: 원황정 | D94: =VLOOKUP($B94,[3]계획인구!$C$1:$AA$65536,12,FALSE) -> 55 | E94: =VLOOKUP($B94,[3]계획인구!$C$1:$AA$65536,22,FALSE) -> 83 | F94: =VLOOKUP($B94,[3]계획인구!$C$1:$AA$65536,23,FALSE) -> 83 | G94: 200 | H94: 17 | I94: 17
B95: 옥동 | D95: =VLOOKUP($B95,[3]계획인구!$C$1:$AA$65536,12,FALSE) -> 81 | E95: =VLOOKUP($B95,[3]계획인구!$C$1:$AA$65536,22,FALSE) -> 151 | F95: =VLOOKUP($B95,[3]계획인구!$C$1:$AA$65536,23,FALSE) -> 149 | G95: 200 | H95: 30 | I95: 30
B96: 지소 | D96: =VLOOKUP($B96,[3]계획인구!$C$1:$AA$65536,12,FALSE) -> 12 | E96: =VLOOKUP($B96,[3]계획인구!$C$1:$AA$65536,22,FALSE) -> 19 | F96: =VLOOKUP($B96,[3]계획인구!$C$1:$AA$65536,23,FALSE) -> 19 | G96: 200 | H96: 4 | I96: 4

Sheet 경제성검토 총괄
A1: 5.3 소규모 하수도 경제성 평가결과
A2: 시설명 | B2: 구 분 | C2: 처리 비용 (현재가치) (단위: 백만원) | G2: 비 고
C3: 개별처리 | E3: 집합처리
C4: 건설비 | D4: 유지관리비 | E4: 건설비 | F4: 유지관리비
A5: 황소 | B5: 처리시설 | C5: =황소!$B$49 -> 1069.955078 | D5: =황소!$C$49 -> 2056.630615 | E5: =황소!$D$49 -> 978.8519287 | F5: =황소!$E$49 -> 278.1749878
B6: 관거 | E6: =황소!$D$50 -> 1253.044189 | F6: =황소!$E$50 -> 194.7325592
B7: 합계 | C7: =SUM(C5:D6) -> 3126.585693 | E7: =SUM(E5:F6) -> 2704.803665
B8: 경제성평가 | C8: =IF($C7>$E7,"-","◎") -> - | E8: =IF($C7<$E7,"-","◎") -> ◎
A9: 봉곡 | B9: 처리시설 | C9: =봉곡!$B$49 -> 3081.074463 | D9: =봉곡!$C$49 -> 5922.334473 | E9: =봉곡!$D$49 -> 2048.452148 | F9: =봉곡!$E$49 -> 758.8164062
B10: 관거 | E10: =봉곡!$D$50 -> 3451.39209 | F10: =봉곡!$E$50 -> 652.1152954
B11: 합계 | C11: =SUM(C9:D10) -> 9003.408936 | E11: =SUM(E9:F10) -> 6910.77594
B12: 경제성평가 | C12: =IF($C11>$E11,"-","◎") -> - | E12: =IF($C11<$E11,"-","◎") -> ◎
A13: 운곡 | B13: 처리시설 | C13: =운곡!$B$49 -> 1505.862671 | D13: =운곡!$C$49 -> 2894.517334 | E13: =운곡!$D$49 -> 1242.635376 | F13: =운곡!$E$49 -> 384.7147522
B14: 관거 | E14: =운곡!$D$50 -> 1145.932129 | F14: =운곡!$E$50 -> 172.4470978
B15: 합계 | C15: =SUM(C13:D14) -> 4400.380005 | E15: =SUM(E13:F14) -> 2945.729355
B16: 경제성평가 | C16: =IF($C15>$E15,"-","◎") -> - | E16: =IF($C15<$E15,"-","◎") -> ◎
A17: 초곡 | B17: 처리시설 | C17: =초곡!$B$49 -> 1248.280884 | D17: =초곡!$C$49 -> 2399.402344 | E17: =초곡!$D$49 -> 1090.082275 | F17: =초곡!$E$49 -> 321.9861755
B18: 관거 | E18: =초곡!$D$50 -> 1147.207275 | F18: =초곡!$E$50 -> 172.7124023
B19: 합계 | C19: =SUM(C17:D18) -> 3647.683228 | E19: =SUM(E17:F18) -> 2731.988129
B20: 경제성평가 | C20: =IF($C19>$E19,"-","◎") -> - | E20: =IF($C19<$E19,"-","◎") -> ◎
A21: 구야 | B21: 처리시설 | C21: =구야!$B$49 -> 2397.491943 | D21: =구야!$C$49 -> 4608.375977 | E21: =구야!$D$49 -> 1719.334717 | F21: =구야!$E$49 -> 598.0942993
B22: 관거 | E22: =구야!$D$50 -> 2700.332275 | F22: =구야!$E$50 -> 495.8517151
B23: 합계 | C23: =SUM(C21:D22) -> 7005.86792 | E23: =SUM(E21:F22) -> 5513.613007
B24: 경제성평가 | C24: =IF($C23>$E23,"-","◎") -> - | E24: =IF($C23<$E23,"-","◎") -> ◎
A25: 문무 | B25: 처리시설 | C25: =문무!$B$49 -> 1159.11792 | D25: =문무!$C$49 -> 2228.016602 | E25: =문무!$D$49 -> 1035.113403 | F25: =문무!$E$49 -> 300.1237793
B26: 관거 | E26: =문무!$D$50 -> 1274.72168 | F26: =문무!$E$50 -> 199.2427216
B27: 합계 | C27: =SUM(C25:D26) -> 3387.134521 | E27: =SUM(E25:F26) -> 2809.201584
B28: 경제성평가 | C28: =IF($C27>$E27,"-","◎") -> - | E28: =IF($C27<$E27,"-","◎") -> ◎
A29: 남곡 | B29: 처리시설 | C29: =남곡!$B$49 -> 1278.001831 | D29: =남곡!$C$49 -> 2456.531006 | E29: =남곡!$D$49 -> 1108.13916 | F29: =남곡!$E$49 -> 329.2556152
B30: 관거 | E30: =남곡!$D$50 -> 915.1311035 | F30: =남곡!$E$50 -> 124.4272156
B31: 합계 | C31: =SUM(C29:D30) -> 3734.532837 | E31: =SUM(E29:F30) -> 2476.953094
B32: 경제성평가 | C32: =IF($C31>$E31,"-","◎") -> - | E32: =IF($C31<$E31,"-","◎") -> ◎
A33: 던돌마 | B33: 처리시설 | C33: =던돌마!$B$49 -> 1367.164795 | D33: =던돌마!$C$49 -> 2627.916992 | E33: =던돌마!$D$49 -> 1161.56665 | F33: =던돌마!$E$49 -> 351.0127563
B34: 관거 | E34: =던돌마!$D$50 -> 2028.756592 | F34: =던돌마!$E$50 -> 356.1253662
B35: 합계 | C35: =SUM(C33:D34) -> 3995.081787 | E35: =SUM(E33:F34) -> 3897.461365
B36: 경제성평가 | C36: =IF($C35>$E35,"-","◎") -> - | E36: =IF($C35<$E35,"-","◎") -> ◎
A37: 덕남 | B37: 처리시설 | C37: =덕남!$B$49 -> 4042.05249 | D37: =덕남!$C$49 -> 7769.493652 | E37: =덕남!$D$49 -> 2475.959229 | F37: =덕남!$E$49 -> 981.7479858
B38: 관거 | E38: =덕남!$D$50 -> 5098.027344 | F38: =덕남!$E$50 -> 994.7102051
B39: 합계 | C39: =SUM(C37:D38) -> 11811.54614 | E39: =SUM(E37:F38) -> 9550.444763
B40: 경제성평가 | C40: =IF($C39>$E39,"-","◎") -> - | E40: =IF($C39<$E39,"-","◎") -> ◎
A41: 대양 | B41: 처리시설 | C41: =대양!$B$49 -> 941.1641846 | D41: =대양!$C$49 -> 1809.073242 | E41: =대양!$D$49 -> 895.0085449 | F41: =대양!$E$49 -> 246.3030548
B42: 관거 | E42: =대양!$D$50 -> 1531.450562 | F42: =대양!$E$50 -> 252.6571045
B43: 합계 | C43: =SUM(C41:D42) -> 2750.237427 | E43: =SUM(E41:F42) -> 2925.419266
B44: 경제성평가 | C44: =IF($C43>$E43,"-","◎") -> ◎ | E44: =IF($C43<$E43,"-","◎") -> -
A45: 옥율 | B45: 처리시설 | C45: =옥율!$B$49 -> 1020.420105 | D45: =옥율!$C$49 -> 1961.41626 | E45: =옥율!$D$49 -> 946.9858398 | F45: =옥율!$E$49 -> 265.9411926
B46: 관거 | E46: =옥율!$D$50 -> 1109.803101 | F46: =옥율!$E$50 -> 164.9301605
B47: 합계 | C47: =SUM(C45:D46) -> 2981.836365 | E47: =SUM(E45:F46) -> 2487.660294
B48: 경제성평가 | C48: =IF($C47>$E47,"-","◎") -> - | E48: =IF($C47<$E47,"-","◎") -> ◎
A49: 능치 | B49: 처리시설 | C49: =능치!$B$49 -> 3705.214844 | D49: =능치!$C$49 -> 7122.036133 | E49: =능치!$D$49 -> 2330.019043 | F49: =능치!$E$49 -> 903.9537354
B50: 관거 | E50: =능치!$D$50 -> 4150.595703 | F50: =능치!$E$50 -> 797.5899048
B51: 합계 | C51: =SUM(C49:D50) -> 10827.25098 | E51: =SUM(E49:F50) -> 8182.158386
B52: 경제성평가 | C52: =IF($C51>$E51,"-","◎") -> - | E52: =IF($C51<$E51,"-","◎") -> ◎
A53: 도암 | B53: 처리시설 | C53: =도암!$B$49 -> 2962.19043 | D53: =도암!$C$49 -> 5693.820312 | E53: =도암!$D$49 -> 1992.939697 | F53: =도암!$E$49 -> 731.0085449
B54: 관거 | E54: =도암!$D$50 -> 3682.192871 | F54: =도암!$E$50 -> 700.1351929
B55: 합계 | C55: =SUM(C53:D54) -> 8656.010742 | E55: =SUM(E53:F54) -> 7106.276306
B56: 경제성평가 | C56: =IF($C55>$E55,"-","◎") -> - | E56: =IF($C55<$E55,"-","◎") -> ◎
A57: 태화 | B57: 처리시설 | C57: =태화!$B$49 -> 1753.537354 | D57: =태화!$C$49 -> 3370.589111 | E57: =태화!$D$49 -> 1382.023682 | F57: =태화!$E$49 -> 444.5111694
B58: 관거 | E58: =태화!$D$50 -> 2383.671631 | F58: =태화!$E$50 -> 429.9681091
B59: 합계 | C59: =SUM(C57:D58) -> 5124.126465 | E59: =SUM(E57:F58) -> 4640.174591
B60: 경제성평가 | C60: =IF($C59>$E59,"-","◎") -> - | E60: =IF($C59<$E59,"-","◎") -> ◎
A61: 신암 | B61: 처리시설 | C61: =신암!$B$49 -> 2001.212158 | D61: =신암!$C$49 -> 3846.661133 | E61: =신암!$D$49 -> 1515.57312 | F61: =신암!$E$49 -> 503.8752441
B62: 관거 | E62: =신암!$D$50 -> 2620.42334 | F62: =신암!$E$50 -> 479.2260437
B63: 합계 | C63: =SUM(C61:D62) -> 5847.873291 | E63: =SUM(E61:F62) -> 5119.097748
B64: 경제성평가 | C64: =IF($C63>$E63,"-","◎") -> - | E64: =IF($C63<$E63,"-","◎") -> ◎
A65: 광기 | B65: 처리시설 | C65: =광기!$B$49 -> 2130.003174 | D65: =광기!$C$49 -> 4094.218506 | E65: =광기!$D$49 -> 1583.029785 | F65: =광기!$E$49 -> 534.5929565
B66: 관거 | E66: =광기!$D$50 -> 2618.723145 | F66: =광기!$E$50 -> 478.872345
B67: 합계 | C67: =SUM(C65:D66) -> 6224.22168 | E67: =SUM(E65:F66) -> 5215.218231
B68: 경제성평가 | C68: =IF($C67>$E67,"-","◎") -> - | E68: =IF($C67<$E67,"-","◎") -> ◎
A69: 무안 | B69: 처리시설 | C69: =무안!$B$49 -> 1050.141113 | D69: =무안!$C$49 -> 2018.544922 | E69: =무안!$D$49 -> 966.1601562 | F69: =무안!$E$49 -> 273.2850647
B70: 관거 | E70: =무안!$D$50 -> 1685.317871 | F70: =무안!$E$50 -> 284.6703491
B71: 합계 | C71: =SUM(C69:D70) -> 3068.686035 | E71: =SUM(E69:F70) -> 3209.433441
B72: 경제성평가 | C72: =IF($C71>$E71,"-","◎") -> ◎ | E72: =IF($C71<$E71,"-","◎") -> -
A73: 신안 | B73: 처리시설 | C73: =신안!$B$49 -> 2367.770996 | D73: =신안!$C$49 -> 4551.247559 | E73: =신안!$D$49 -> 1704.425293 | F73: =신안!$E$49 -> 591.057312
B74: 관거 | E74: =신안!$D$50 -> 2833.372314 | F74: =신안!$E$50 -> 523.5316772
B75: 합계 | C75: =SUM(C73:D74) -> 6919.018555 | E75: =SUM(E73:F74) -> 5652.386597
B76: 경제성평가 | C76: =IF($C75>$E75,"-","◎") -> - | E76: =IF($C75<$E75,"-","◎") -> ◎
A77: 대평 | B77: 처리시설 | C77: =대평!$B$49 -> 1377.071777 | D77: =대평!$C$49 -> 2646.959961 | E77: =대평!$D$49 -> 1167.437134 | F77: =대평!$E$49 -> 353.4256592
B78: 관거 | E78: =대평!$D$50 -> 1702.744873 | F78: =대평!$E$50 -> 288.2961731
B79: 합계 | C79: =SUM(C77:D78) -> 4024.031738 | E79: =SUM(E77:F78) -> 3511.903839
B80: 경제성평가 | C80: =IF($C79>$E79,"-","◎") -> - | E80: =IF($C79<$E79,"-","◎") -> ◎
A81: 하강 | B81: 처리시설 | C81: =하강!$B$49 -> 2635.259766 | D81: =하강!$C$49 -> 5065.405273 | E81: =하강!$D$49 -> 1836.677612 | F81: =하강!$E$49 -> 654.234375
B82: 관거 | E82: =하강!$D$50 -> 3738.299316 | F82: =하강!$E$50 -> 711.8085327
B83: 합계 | C83: =SUM(C81:D82) -> 7700.665039 | E83: =SUM(E81:F82) -> 6941.019836
B84: 경제성평가 | C84: =IF($C83>$E83,"-","◎") -> - | E84: =IF($C83<$E83,"-","◎") -> ◎
A85: 월곡 | B85: 처리시설 | C85: =월곡!$B$49 -> 733.1173706 | D85: =월곡!$C$49 -> 1409.172852 | E85: =월곡!$D$49 -> 751.7581787 | F85: =월곡!$E$49 -> 194.3267975
B86: 관거 | E86: =월곡!$D$50 -> 942.7592773 | F86: =월곡!$E$50 -> 130.1754456
B87: 합계 | C87: =SUM(C85:D86) -> 2142.290222 | E87: =SUM(E85:F86) -> 2019.019699
B88: 경제성평가 | C88: =IF($C87>$E87,"-","◎") -> - | E88: =IF($C87<$E87,"-","◎") -> ◎
A89: 월매 | B89: 처리시설 | C89: =월매!$B$49 -> 1000.606079 | D89: =월매!$C$49 -> 1923.330566 | E89: =월매!$D$49 -> 934.109375 | F89: =월매!$E$49 -> 261.0392151
B90: 관거 | E90: =월매!$D$50 -> 2017.280273 | F90: =월매!$E$50 -> 353.7376404
B91: 합계 | C91: =SUM(C89:D90) -> 2923.936646 | E91: =SUM(E89:F90) -> 3566.166504
B92: 경제성평가 | C92: =IF($C91>$E91,"-","◎") -> ◎ | E92: =IF($C91<$E91,"-","◎") -> -
A93: 옥동 | B93: 처리시설 | C93: =옥동!$B$49 -> 1783.258545 | D93: =옥동!$C$49 -> 3427.717773 | E93: =옥동!$D$49 -> 1398.336914 | F93: =옥동!$E$49 -> 451.6564331
B94: 관거 | E94: =옥동!$D$50 -> 2789.167236 | F94: =옥동!$E$50 -> 514.3345337
B95: 합계 | C95: =SUM(C93:D94) -> 5210.976318 | E95: =SUM(E93:F94) -> 5153.495117
B96: 경제성평가 | C96: =IF($C95>$E95,"-","◎") -> - | E96: =IF($C95<$E95,"-","◎") -> ◎

Sheet 황소
A1: 경제성 평가 일반 - 집합처리와 개별처리의 비교 | I1: 황소
A2: 개요: 하수처리구역 설정 시 처리구역으로 설정하여 집합처리하는 것과, 처리구역으로 설정하지 않고 개별처리하는 것이 어느 것이 더 경제적인가?
A3: ※아래 질문에 대한 답을 오른쪽 노란 칸에 적어 주십시오. 질문에 대한 답을 하실 수 없는 경우에는 파란색 빈칸에 있는 숫자를 노란색 칸에 적어 주십시오
A5: 1. 하수처리구역의 목표 BOD를 선택해 주십시오.
A7: 2. 대상지역의 예상 가구수는 몇 가구입니까? | I7: =VLOOKUP($I$1,'검토 시설개요'!$A:$H,3,FALSE) -> 108
A9: 3. 대상지역에 집합처리시설을 건설할 경우 필요한 하수관거거리는 몇 미터입니까? | I9: =VLOOKUP($I$1,'검토 시설개요'!$A:$H,8,FALSE) -> 2202
A11: 4. 계획 중인 집합처리시설의 건설비는 얼마입니까? (단위: 백만원) | I11: =K11 -> 555.4160958 | K11: =30.184*(0.6*I7)^0.6982 -> 555.4160958
A13: 5. 위 건설비 중 기계 및 전기시설의 비중은 얼마입니까? | I13: =K13 -> 0.5 | K13: 0.5
A14: (나머지는 건축비, 단지조성비 등 구조물 비용입니다)
A16: 6. 계획 중인 집합처리시설의 연간 유지관리비는 얼마입니까? (단위: 백만원) | I16: =K16 -> 9.436655317 | K16: =0.1803*(0.6*I7)^0.9488 -> 9.436655317
A18: 7. 계획 중인 집합처리시설 기계 및 전기시설의 내구연한은 얼마입니까? (단위: 년) | I18: =K18 -> 15 | K18: 15
A20: 8. 계획 중인 집합처리시설 구조물의 내구연한은 얼마입니까? (단위: 년) | I20: =K20 -> 50 | K20: 50
A22: 9. 대상지역에 개인하수처리시설(1톤/일)을 설치할 경우 건설비는 얼마입니까? (단위: 백만원) | I22: =K22 -> 4.16 | K22: 4.16
A24: 10. 개인하수처리시설 건설비 중 기계 및 전기시설의 비중은 얼마입니까? | I24: =K24 -> 0.5 | K24: 0.5
A25: (나머지는 건축비 등 구조물 비용입니다)
A26: 11. 개인하수처리시설의 연간 유지관리비는 어느 정도입니까? (단위: 백만원) | I26: =K26 -> 0.646 | K26: 0.646
A28: 12. 개인하수처리시설 기계 및 전기시설의 내구연한은 얼마입니까? (단위: 년) | I28: =K28 -> 10 | K28: 10
A30: 13. 개인하수처리시설 구조물의 내구연한은 얼마입니까? (단위: 년) | I30: =K30 -> 30 | K30: 30
A32: 14. 집합처리 시 하수관거의 총 건설비는 얼마입니까? (단위: 백만원) | I32: =K32 -> 905.9226 | K32: =229.248+0.3073*I9 -> 905.9226
A34: 15. 하수관거의 연간 유지관리비는 얼마입니까? (단위: 백만원) | I34: =K34 -> 6.606 | K34: =0.003*I9 -> 6.606
A36: 16. 하수관거의 내구연한은 얼마입니까? (단위: 년) | I36: =K36 -> 40 | K36: 40
A38: 17. 할인율은 얼마입니까? (단위: %) | I38: 5.5 | K38: 5.5
A40: 18. 향후 50년간 물가상승률은 어느정도로 예상합니까? (단위: %) | I40: =K40 -> 3 | K40: 3
A46: 구 분 | B46: 처리 비용 (현재가치) (단위: 백만원)
B47: 개별처리 | D47: 집합처리
B48: 건설비 | C48: 유지관리비 | D48: 건설비 | E48: 유지관리비
A49: 처리시설 | B49: 1069.955078 | C49: 2056.630615 | D49: 978.8519287 | E49: 278.1749878
A50: 관거 | D50: 1253.044189 | E50: 194.7325592
A51: 합계 | B51: 3126.585693 | D51: 2704.803711
A52: 총기준관거거리(m) | B52: 3023.415039
A53: 기준관거거리(m) | B53: 27.99458313
A54: 경제성 평가 | B54: 집합처리

Sheet 봉곡
A1: 경제성 평가 일반 - 집합처리와 개별처리의 비교 | I1: 봉곡
A2: 개요: 하수처리구역 설정 시 처리구역으로 설정하여 집합처리하는 것과, 처리구역으로 설정하지 않고 개별처리하는 것이 어느 것이 더 경제적인가?
A3: ※아래 질문에 대한 답을 오른쪽 노란 칸에 적어 주십시오. 질문에 대한 답을 하실 수 없는 경우에는 파란색 빈칸에 있는 숫자를 노란색 칸에 적어 주십시오
A5: 1. 하수처리구역의 목표 BOD를 선택해 주십시오.
A7: 2. 대상지역의 예상 가구수는 몇 가구입니까? | I7: =VLOOKUP($I$1,'검토 시설개요'!$A:$H,3,FALSE) -> 311
A9: 3. 대상지역에 집합처리시설을 건설할 경우 필요한 하수관거거리는 몇 미터입니까? | I9: =VLOOKUP($I$1,'검토 시설개요'!$A:$H,8,FALSE) -> 7374
A11: 4. 계획 중인 집합처리시설의 건설비는 얼마입니까? (단위: 백만원) | I11: =K11 -> 1162.32425 | K11: =30.184*(0.6*I7)^0.6982 -> 1162.32425
A13: 5. 위 건설비 중 기계 및 전기시설의 비중은 얼마입니까? | I13: =K13 -> 0.5 | K13: 0.5
A14: (나머지는 건축비, 단지조성비 등 구조물 비용입니다)
A16: 6. 계획 중인 집합처리시설의 연간 유지관리비는 얼마입니까? (단위: 백만원) | I16: =K16 -> 25.74166832 | K16: =0.1803*(0.6*I7)^0.9488 -> 25.74166832
A18: 7. 계획 중인 집합처리시설 기계 및 전기시설의 내구연한은 얼마입니까? (단위: 년) | I18: =K18 -> 15 | K18: 15
A20: 8. 계획 중인 집합처리시설 구조물의 내구연한은 얼마입니까? (단위: 년) | I20: =K20 -> 50 | K20: 50
A22: 9. 대상지역에 개인하수처리시설(1톤/일)을 설치할 경우 건설비는 얼마입니까? (단위: 백만원) | I22: =K22 -> 4.16 | K22: 4.16
A24: 10. 개인하수처리시설 건설비 중 기계 및 전기시설의 비중은 얼마입니까? | I24: =K24 -> 0.5 | K24: 0.5
A25: (나머지는 건축비 등 구조물 비용입니다)
A26: 11. 개인하수처리시설의 연간 유지관리비는 어느 정도입니까? (단위: 백만원) | I26: =K26 -> 0.646 | K26: 0.646
A28: 12. 개인하수처리시설 기계 및 전기시설의 내구연한은 얼마입니까? (단위: 년) | I28: =K28 -> 10 | K28: 10
A30: 13. 개인하수처리시설 구조물의 내구연한은 얼마입니까? (단위: 년) | I30: =K30 -> 30 | K30: 30
A32: 14. 집합처리 시 하수관거의 총 건설비는 얼마입니까? (단위: 백만원) | I32: =K32 -> 2495.2782 | K32: =229.248+0.3073*I9 -> 2495.2782
A34: 15. 하수관거의 연간 유지관리비는 얼마입니까? (단위: 백만원) | I34: =K34 -> 22.122 | K34: =0.003*I9 -> 22.122
A36: 16. 하수관거의 내구연한은 얼마입니까? (단위: 년) | I36: =K36 -> 40 | K36: 40
A38: 17. 할인율은 얼마입니까? (단위: %) | I38: 5.5 | K38: 5.5
A40: 18. 향후 50년간 물가상승률은 어느정도로 예상합니까? (단위: %) | I40: =K40 -> 3 | K40: 3
A46: 구 분 | B46: 처리 비용 (현재가치) (단위: 백만원)
B47: 개별처리 | D47: 집합처리
B48: 건설비 | C48: 유지관리비 | D48: 건설비 | E48: 유지관리비
A49: 처리시설 | B49: 3081.074463 | C49: 5922.334473 | D49: 2048.452148 | E49: 758.8164062
A50: 관거 | D50: 3451.39209 | E50: 652.1152954
A51: 합계 | B51: 9003.40918 | D51: 6910.775879
A52: 총기준관거거리(m) | B52: 11449.37598
A53: 기준관거거리(m) | B53: 36.81471252
A54: 경제성 평가 | B54: 집합처리

Sheet 운곡
A1: 경제성 평가 일반 - 집합처리와 개별처리의 비교 | I1: 운곡
A2: 개요: 하수처리구역 설정 시 처리구역으로 설정하여 집합처리하는 것과, 처리구역으로 설정하지 않고 개별처리하는 것이 어느 것이 더 경제적인가?
A3: ※아래 질문에 대한 답을 오른쪽 노란 칸에 적어 주십시오. 질문에 대한 답을 하실 수 없는 경우에는 파란색 빈칸에 있는 숫자를 노란색 칸에 적어 주십시오
A5: 1. 하수처리구역의 목표 BOD를 선택해 주십시오.
A7: 2. 대상지역의 예상 가구수는 몇 가구입니까? | I7: =VLOOKUP($I$1,'검토 시설개요'!$A:$H,3,FALSE) -> 152
A9: 3. 대상지역에 집합처리시설을 건설할 경우 필요한 하수관거거리는 몇 미터입니까? | I9: =VLOOKUP($I$1,'검토 시설개요'!$A:$H,8,FALSE) -> 1950
A11: 4. 계획 중인 집합처리시설의 건설비는 얼마입니까? (단위: 백만원) | I11: =K11 -> 705.0910277 | K11: =30.184*(0.6*I7)^0.6982 -> 705.0910277
A13: 5. 위 건설비 중 기계 및 전기시설의 비중은 얼마입니까? | I13: =K13 -> 0.5 | K13: 0.5
A14: (나머지는 건축비, 단지조성비 등 구조물 비용입니다)
A16: 6. 계획 중인 집합처리시설의 연간 유지관리비는 얼마입니까? (단위: 백만원) | I16: =K16 -> 13.05085094 | K16: =0.1803*(0.6*I7)^0.9488 -> 13.05085094
A18: 7. 계획 중인 집합처리시설 기계 및 전기시설의 내구연한은 얼마입니까? (단위: 년) | I18: =K18 -> 15 | K18: 15
A20: 8. 계획 중인 집합처리시설 구조물의 내구연한은 얼마입니까? (단위: 년) | I20: =K20 -> 50 | K20: 50
A22: 9. 대상지역에 개인하수처리시설(1톤/일)을 설치할 경우 건설비는 얼마입니까? (단위: 백만원) | I22: =K22 -> 4.16 | K22: 4.16
A24: 10. 개인하수처리시설 건설비 중 기계 및 전기시설의 비중은 얼마입니까? | I24: =K24 -> 0.5 | K24: 0.5
A25: (나머지는 건축비 등 구조물 비용입니다)
A26: 11. 개인하수처리시설의 연간 유지관리비는 어느 정도입니까? (단위: 백만원) | I26: =K26 -> 0.646 | K26: 0.646
A28: 12. 개인하수처리시설 기계 및 전기시설의 내구연한은 얼마입니까? (단위: 년) | I28: =K28 -> 10 | K28: 10
A30: 13. 개인하수처리시설 구조물의 내구연한은 얼마입니까? (단위: 년) | I30: =K30 -> 30 | K30: 30
A32: 14. 집합처리 시 하수관거의 총 건설비는 얼마입니까? (단위: 백만원) | I32: =K32 -> 828.483 | K32: =229.248+0.3073*I9 -> 828.483
A34: 15. 하수관거의 연간 유지관리비는 얼마입니까? (단위: 백만원) | I34: =K34 -> 5.85 | K34: =0.003*I9 -> 5.85
A36: 16. 하수관거의 내구연한은 얼마입니까? (단위: 년) | I36: =K36 -> 40 | K36: 40
A38: 17. 할인율은 얼마입니까? (단위: %) | I38: 5.5 | K38: 5.5
A40: 18. 향후 50년간 물가상승률은 어느정도로 예상합니까? (단위: %) | I40: =K40 -> 3 | K40: 3
A46: 구 분 | B46: 처리 비용 (현재가치) (단위: 백만원)
B47: 개별처리 | D47: 집합처리
B48: 건설비 | C48: 유지관리비 | D48: 건설비 | E48: 유지관리비
A49: 처리시설 | B49: 1505.862671 | C49: 2894.517334 | D49: 1242.635376 | E49: 384.7147522
A50: 관거 | D50: 1145.932129 | E50: 172.4470978
A51: 합계 | B51: 4400.379883 | D51: 2945.729248
A52: 총기준관거거리(m) | B52: 4782.912598
A53: 기준관거거리(m) | B53: 31.46652985
A54: 경제성 평가 | B54: 집합처리

Sheet 초곡
A1: 경제성 평가 일반 - 집합처리와 개별처리의 비교 | I1: 초곡
A2: 개요: 하수처리구역 설정 시 처리구역으로 설정하여 집합처리하는 것과, 처리구역으로 설정하지 않고 개별처리하는 것이 어느 것이 더 경제적인가?
A3: ※아래 질문에 대한 답을 오른쪽 노란 칸에 적어 주십시오. 질문에 대한 답을 하실 수 없는 경우에는 파란색 빈칸에 있는 숫자를 노란색 칸에 적어 주십시오
A5: 1. 하수처리구역의 목표 BOD를 선택해 주십시오.
A7: 2. 대상지역의 예상 가구수는 몇 가구입니까? | I7: =VLOOKUP($I$1,'검토 시설개요'!$A:$H,3,FALSE) -> 126
A9: 3. 대상지역에 집합처리시설을 건설할 경우 필요한 하수관거거리는 몇 미터입니까? | I9: =VLOOKUP($I$1,'검토 시설개요'!$A:$H,8,FALSE) -> 1953
A11: 4. 계획 중인 집합처리시설의 건설비는 얼마입니까? (단위: 백만원) | I11: =K11 -> 618.5299162 | K11: =30.184*(0.6*I7)^0.6982 -> 618.5299162
A13: 5. 위 건설비 중 기계 및 전기시설의 비중은 얼마입니까? | I13: =K13 -> 0.5 | K13: 0.5
A14: (나머지는 건축비, 단지조성비 등 구조물 비용입니다)
A16: 6. 계획 중인 집합처리시설의 연간 유지관리비는 얼마입니까? (단위: 백만원) | I16: =K16 -> 10.9228811 | K16: =0.1803*(0.6*I7)^0.9488 -> 10.9228811
A18: 7. 계획 중인 집합처리시설 기계 및 전기시설의 내구연한은 얼마입니까? (단위: 년) | I18: =K18 -> 15 | K18: 15
A20: 8. 계획 중인 집합처리시설 구조물의 내구연한은 얼마입니까? (단위: 년) | I20: =K20 -> 50 | K20: 50
A22: 9. 대상지역에 개인하수처리시설(1톤/일)을 설치할 경우 건설비는 얼마입니까? (단위: 백만원) | I22: =K22 -> 4.16 | K22: 4.16
A24: 10. 개인하수처리시설 건설비 중 기계 및 전기시설의 비중은 얼마입니까? | I24: =K24 -> 0.5 | K24: 0.5
A25: (나머지는 건축비 등 구조물 비용입니다)
A26: 11. 개인하수처리시설의 연간 유지관리비는 어느 정도입니까? (단위: 백만원) | I26: =K26 -> 0.646 | K26: 0.646
A28: 12. 개인하수처리시설 기계 및 전기시설의 내구연한은 얼마입니까? (단위: 년) | I28: =K28 -> 10 | K28: 10
A30: 13. 개인하수처리시설 구조물의 내구연한은 얼마입니까? (단위: 년) | I30: =K30 -> 30 | K30: 30
A32: 14. 집합처리 시 하수관거의 총 건설비는 얼마입니까? (단위: 백만원) | I32: =K32 -> 829.4049 | K32: =229.248+0.3073*I9 -> 829.4049
A34: 15. 하수관거의 연간 유지관리비는 얼마입니까? (단위: 백만원) | I34: =K34 -> 5.859 | K34: =0.003*I9 -> 5.859
A36: 16. 하수관거의 내구연한은 얼마입니까? (단위: 년) | I36: =K36 -> 40 | K36: 40
A38: 17. 할인율은 얼마입니까? (단위: %) | I38: 5.5 | K38: 5.5
A40: 18. 향후 50년간 물가상승률은 어느정도로 예상합니까? (단위: %) | I40: =K40 -> 3 | K40: 3
A46: 구 분 | B46: 처리 비용 (현재가치) (단위: 백만원)
B47: 개별처리 | D47: 집합처리
B48: 건설비 | C48: 유지관리비 | D48: 건설비 | E48: 유지관리비
A49: 처리시설 | B49: 1248.280884 | C49: 2399.402344 | D49: 1090.082275 | E49: 321.9861755
A50: 관거 | D50: 1147.207275 | E50: 172.7124023
A51: 합계 | B51: 3647.683105 | D51: 2731.988037
A52: 총기준관거거리(m) | B52: 3736.304199
A53: 기준관거거리(m) | B53: 29.65320778
A54: 경제성 평가 | B54: 집합처리

Sheet 구야
A1: 경제성 평가 일반 - 집합처리와 개별처리의 비교 | I1: 구야
A2: 개요: 하수처리구역 설정 시 처리구역으로 설정하여 집합처리하는 것과, 처리구역으로 설정하지 않고 개별처리하는 것이 어느 것이 더 경제적인가?
A3: ※아래 질문에 대한 답을 오른쪽 노란 칸에 적어 주십시오. 질문에 대한 답을 하실 수 없는 경우에는 파란색 빈칸에 있는 숫자를 노란색 칸에 적어 주십시오
A5: 1. 하수처리구역의 목표 BOD를 선택해 주십시오.
A7: 2. 대상지역의 예상 가구수는 몇 가구입니까? | I7: =VLOOKUP($I$1,'검토 시설개요'!$A:$H,3,FALSE) -> 242
A9: 3. 대상지역에 집합처리시설을 건설할 경우 필요한 하수관거거리는 몇 미터입니까? | I9: =VLOOKUP($I$1,'검토 시설개요'!$A:$H,8,FALSE) -> 5607
A11: 4. 계획 중인 집합처리시설의 건설비는 얼마입니까? (단위: 백만원) | I11: =K11 -> 975.5777431 | K11: =30.184*(0.6*I7)^0.6982 -> 975.5777431
A13: 5. 위 건설비 중 기계 및 전기시설의 비중은 얼마입니까? | I13: =K13 -> 0.5 | K13: 0.5
A14: (나머지는 건축비, 단지조성비 등 구조물 비용입니다)
A16: 6. 계획 중인 집합처리시설의 연간 유지관리비는 얼마입니까? (단위: 백만원) | I16: =K16 -> 20.28942093 | K16: =0.1803*(0.6*I7)^0.9488 -> 20.28942093
A18: 7. 계획 중인 집합처리시설 기계 및 전기시설의 내구연한은 얼마입니까? (단위: 년) | I18: =K18 -> 15 | K18: 15
A20: 8. 계획 중인 집합처리시설 구조물의 내구연한은 얼마입니까? (단위: 년) | I20: =K20 -> 50 | K20: 50
A22: 9. 대상지역에 개인하수처리시설(1톤/일)을 설치할 경우 건설비는 얼마입니까? (단위: 백만원) | I22: =K22 -> 4.16 | K22: 4.16
A24: 10. 개인하수처리시설 건설비 중 기계 및 전기시설의 비중은 얼마입니까? | I24: =K24 -> 0.5 | K24: 0.5
A25: (나머지는 건축비 등 구조물 비용입니다)
A26: 11. 개인하수처리시설의 연간 유지관리비는 어느 정도입니까? (단위: 백만원) | I26: =K26 -> 0.646 | K26: 0.646
A28: 12. 개인하수처리시설 기계 및 전기시설의 내구연한은 얼마입니까? (단위: 년) | I28: =K28 -> 10 | K28: 10
A30: 13. 개인하수처리시설 구조물의 내구연한은 얼마입니까? (단위: 년) | I30: =K30 -> 30 | K30: 30
A32: 14. 집합처리 시 하수관거의 총 건설비는 얼마입니까? (단위: 백만원) | I32: =K32 -> 1952.2791 | K32: =229.248+0.3073*I9 -> 1952.2791
A34: 15. 하수관거의 연간 유지관리비는 얼마입니까? (단위: 백만원) | I34: =K34 -> 16.821 | K34: =0.003*I9 -> 16.821
A36: 16. 하수관거의 내구연한은 얼마입니까? (단위: 년) | I36: =K36 -> 40 | K36: 40
A38: 17. 할인율은 얼마입니까? (단위: %) | I38: 5.5 | K38: 5.5
A40: 18. 향후 50년간 물가상승률은 어느정도로 예상합니까? (단위: %) | I40: =K40 -> 3 | K40: 3
A46: 구 분 | B46: 처리 비용 (현재가치) (단위: 백만원)
B47: 개별처리 | D47: 집합처리
B48: 건설비 | C48: 유지관리비 | D48: 건설비 | E48: 유지관리비
A49: 처리시설 | B49: 2397.491943 | C49: 4608.375977 | D49: 1719.334717 | E49: 598.0942993
A50: 관거 | D50: 2700.332275 | E50: 495.8517151
A51: 합계 | B51: 7005.868164 | D51: 5513.612793
A52: 총기준관거거리(m) | B52: 8513.146484
A53: 기준관거거리(m) | B53: 35.17829132
A54: 경제성 평가 | B54: 집합처리

Sheet 문무
A1: 경제성 평가 일반 - 집합처리와 개별처리의 비교 | I1: 문무
A2: 개요: 하수처리구역 설정 시 처리구역으로 설정하여 집합처리하는 것과, 처리구역으로 설정하지 않고 개별처리하는 것이 어느 것이 더 경제적인가?
A3: ※아래 질문에 대한 답을 오른쪽 노란 칸에 적어 주십시오. 질문에 대한 답을 하실 수 없는 경우에는 파란색 빈칸에 있는 숫자를 노란색 칸에 적어 주십시오
A5: 1. 하수처리구역의 목표 BOD를 선택해 주십시오.
A7: 2. 대상지역의 예상 가구수는 몇 가구입니까? | I7: =VLOOKUP($I$1,'검토 시설개요'!$A:$H,3,FALSE) -> 117
A9: 3. 대상지역에 집합처리시설을 건설할 경우 필요한 하수관거거리는 몇 미터입니까? | I9: =VLOOKUP($I$1,'검토 시설개요'!$A:$H,8,FALSE) -> 2253
A11: 4. 계획 중인 집합처리시설의 건설비는 얼마입니까? (단위: 백만원) | I11: =K11 -> 587.3397092 | K11: =30.184*(0.6*I7)^0.6982 -> 587.3397092
A13: 5. 위 건설비 중 기계 및 전기시설의 비중은 얼마입니까? | I13: =K13 -> 0.5 | K13: 0.5
A14: (나머지는 건축비, 단지조성비 등 구조물 비용입니다)
A16: 6. 계획 중인 집합처리시설의 연간 유지관리비는 얼마입니까? (단위: 백만원) | I16: =K16 -> 10.18123305 | K16: =0.1803*(0.6*I7)^0.9488 -> 10.18123305
A18: 7. 계획 중인 집합처리시설 기계 및 전기시설의 내구연한은 얼마입니까? (단위: 년) | I18: =K18 -> 15 | K18: 15
A20: 8. 계획 중인 집합처리시설 구조물의 내구연한은 얼마입니까? (단위: 년) | I20: =K20 -> 50 | K20: 50
A22: 9. 대상지역에 개인하수처리시설(1톤/일)을 설치할 경우 건설비는 얼마입니까? (단위: 백만원) | I22: =K22 -> 4.16 | K22: 4.16
A24: 10. 개인하수처리시설 건설비 중 기계 및 전기시설의 비중은 얼마입니까? | I24: =K24 -> 0.5 | K24: 0.5
A25: (나머지는 건축비 등 구조물 비용입니다)
A26: 11. 개인하수처리시설의 연간 유지관리비는 어느 정도입니까? (단위: 백만원) | I26: =K26 -> 0.646 | K26: 0.646
A28: 12. 개인하수처리시설 기계 및 전기시설의 내구연한은 얼마입니까? (단위: 년) | I28: =K28 -> 10 | K28: 10
A30: 13. 개인하수처리시설 구조물의 내구연한은 얼마입니까? (단위: 년) | I30: =K30 -> 30 | K30: 30
A32: 14. 집합처리 시 하수관거의 총 건설비는 얼마입니까? (단위: 백만원) | I32: =K32 -> 921.5949 | K32: =229.248+0.3073*I9 -> 921.5949
A34: 15. 하수관거의 연간 유지관리비는 얼마입니까? (단위: 백만원) | I34: =K34 -> 6.759 | K34: =0.003*I9 -> 6.759
A36: 16. 하수관거의 내구연한은 얼마입니까? (단위: 년) | I36: =K36 -> 40 | K36: 40
A38: 17. 할인율은 얼마입니까? (단위: %) | I38: 5.5 | K38: 5.5
A40: 18. 향후 50년간 물가상승률은 어느정도로 예상합니까? (단위: %) | I40: =K40 -> 3 | K40: 3
A46: 구 분 | B46: 처리 비용 (현재가치) (단위: 백만원)
B47: 개별처리 | D47: 집합처리
B48: 건설비 | C48: 유지관리비 | D48: 건설비 | E48: 유지관리비
A49: 처리시설 | B49: 1159.11792 | C49: 2228.016602 | D49: 1035.113403 | E49: 300.1237793
A50: 관거 | D50: 1274.72168 | E50: 199.2427216
A51: 합계 | B51: 3387.134521 | D51: 2809.20166
A52: 총기준관거거리(m) | B52: 3378.51709
A53: 기준관거거리(m) | B53: 28.87621498
A54: 경제성 평가 | B54: 집합처리

Sheet 남곡
A1: 경제성 평가 일반 - 집합처리와 개별처리의 비교 | I1: 남곡
A2: 개요: 하수처리구역 설정 시 처리구역으로 설정하여 집합처리하는 것과, 처리구역으로 설정하지 않고 개별처리하는 것이 어느 것이 더 경제적인가?
A3: ※아래 질문에 대한 답을 오른쪽 노란 칸에 적어 주십시오. 질문에 대한 답을 하실 수 없는 경우에는 파란색 빈칸에 있는 숫자를 노란색 칸에 적어 주십시오
A5: 1. 하수처리구역의 목표 BOD를 선택해 주십시오.
A7: 2. 대상지역의 예상 가구수는 몇 가구입니까? | I7: =VLOOKUP($I$1,'검토 시설개요'!$A:$H,3,FALSE) -> 129
A9: 3. 대상지역에 집합처리시설을 건설할 경우 필요한 하수관거거리는 몇 미터입니까? | I9: =VLOOKUP($I$1,'검토 시설개요'!$A:$H,8,FALSE) -> 1407
A11: 4. 계획 중인 집합처리시설의 건설비는 얼마입니까? (단위: 백만원) | I11: =K11 -> 628.7756733 | K11: =30.184*(0.6*I7)^0.6982 -> 628.7756733
A13: 5. 위 건설비 중 기계 및 전기시설의 비중은 얼마입니까? | I13: =K13 -> 0.5 | K13: 0.5
A14: (나머지는 건축비, 단지조성비 등 구조물 비용입니다)
A16: 6. 계획 중인 집합처리시설의 연간 유지관리비는 얼마입니까? (단위: 백만원) | I16: =K16 -> 11.16948503 | K16: =0.1803*(0.6*I7)^0.9488 -> 11.16948503
A18: 7. 계획 중인 집합처리시설 기계 및 전기시설의 내구연한은 얼마입니까? (단위: 년) | I18: =K18 -> 15 | K18: 15
A20: 8. 계획 중인 집합처리시설 구조물의 내구연한은 얼마입니까? (단위: 년) | I20: =K20 -> 50 | K20: 50
A22: 9. 대상지역에 개인하수처리시설(1톤/일)을 설치할 경우 건설비는 얼마입니까? (단위: 백만원) | I22: =K22 -> 4.16 | K22: 4.16
A24: 10. 개인하수처리시설 건설비 중 기계 및 전기시설의 비중은 얼마입니까? | I24: =K24 -> 0.5 | K24: 0.5
A25: (나머지는 건축비 등 구조물 비용입니다)
A26: 11. 개인하수처리시설의 연간 유지관리비는 어느 정도입니까? (단위: 백만원) | I26: =K26 -> 0.646 | K26: 0.646
A28: 12. 개인하수처리시설 기계 및 전기시설의 내구연한은 얼마입니까? (단위: 년) | I28: =K28 -> 10 | K28: 10
A30: 13. 개인하수처리시설 구조물의 내구연한은 얼마입니까? (단위: 년) | I30: =K30 -> 30 | K30: 30
A32: 14. 집합처리 시 하수관거의 총 건설비는 얼마입니까? (단위: 백만원) | I32: =K32 -> 661.6191 | K32: =229.248+0.3073*I9 -> 661.6191
A34: 15. 하수관거의 연간 유지관리비는 얼마입니까? (단위: 백만원) | I34: =K34 -> 4.221 | K34: =0.003*I9 -> 4.221
A36: 16. 하수관거의 내구연한은 얼마입니까? (단위: 년) | I36: =K36 -> 40 | K36: 40
A38: 17. 할인율은 얼마입니까? (단위: %) | I38: 5.5 | K38: 5.5
A40: 18. 향후 50년간 물가상승률은 어느정도로 예상합니까? (단위: %) | I40: =K40 -> 3 | K40: 3
A46: 구 분 | B46: 처리 비용 (현재가치) (단위: 백만원)
B47: 개별처리 | D47: 집합처리
B48: 건설비 | C48: 유지관리비 | D48: 건설비 | E48: 유지관리비
A49: 처리시설 | B49: 1278.001831 | C49: 2456.531006 | D49: 1108.13916 | E49: 329.2556152
A50: 관거 | D50: 915.1311035 | E50: 124.4272156
A51: 합계 | B51: 3734.532715 | D51: 2476.953125
A52: 총기준관거거리(m) | B52: 3856.120361
A53: 기준관거거리(m) | B53: 29.89240646
A54: 경제성 평가 | B54: 집합처리

Sheet 던돌마
A1: 경제성 평가 일반 - 집합처리와 개별처리의 비교 | I1: 던돌마
A2: 개요: 하수처리구역 설정 시 처리구역으로 설정하여 집합처리하는 것과, 처리구역으로 설정하지 않고 개별처리하는 것이 어느 것이 더 경제적인가?
A3: ※아래 질문에 대한 답을 오른쪽 노란 칸에 적어 주십시오. 질문에 대한 답을 하실 수 없는 경우에는 파란색 빈칸에 있는 숫자를 노란색 칸에 적어 주십시오
A5: 1. 하수처리구역의 목표 BOD를 선택해 주십시오.
A7: 2. 대상지역의 예상 가구수는 몇 가구입니까? | I7: =VLOOKUP($I$1,'검토 시설개요'!$A:$H,3,FALSE) -> 138
A9: 3. 대상지역에 집합처리시설을 건설할 경우 필요한 하수관거거리는 몇 미터입니까? | I9: =VLOOKUP($I$1,'검토 시설개요'!$A:$H,8,FALSE) -> 4027
A11: 4. 계획 중인 집합처리시설의 건설비는 얼마입니까? (단위: 백만원) | I11: =K11 -> 659.0912914 | K11: =30.184*(0.6*I7)^0.6982 -> 659.0912914
A13: 5. 위 건설비 중 기계 및 전기시설의 비중은 얼마입니까? | I13: =K13 -> 0.5 | K13: 0.5
A14: (나머지는 건축비, 단지조성비 등 구조물 비용입니다)
A16: 6. 계획 중인 집합처리시설의 연간 유지관리비는 얼마입니까? (단위: 백만원) | I16: =K16 -> 11.90756361 | K16: =0.1803*(0.6*I7)^0.9488 -> 11.90756361
A18: 7. 계획 중인 집합처리시설 기계 및 전기시설의 내구연한은 얼마입니까? (단위: 년) | I18: =K18 -> 15 | K18: 15
A20: 8. 계획 중인 집합처리시설 구조물의 내구연한은 얼마입니까? (단위: 년) | I20: =K20 -> 50 | K20: 50
A22: 9. 대상지역에 개인하수처리시설(1톤/일)을 설치할 경우 건설비는 얼마입니까? (단위: 백만원) | I22: =K22 -> 4.16 | K22: 4.16
A24: 10. 개인하수처리시설 건설비 중 기계 및 전기시설의 비중은 얼마입니까? | I24: =K24 -> 0.5 | K24: 0.5
A25: (나머지는 건축비 등 구조물 비용입니다)
A26: 11. 개인하수처리시설의 연간 유지관리비는 어느 정도입니까? (단위: 백만원) | I26: =K26 -> 0.646 | K26: 0.646
A28: 12. 개인하수처리시설 기계 및 전기시설의 내구연한은 얼마입니까? (단위: 년) | I28: =K28 -> 10 | K28: 10
A30: 13. 개인하수처리시설 구조물의 내구연한은 얼마입니까? (단위: 년) | I30: =K30 -> 30 | K30: 30
A32: 14. 집합처리 시 하수관거의 총 건설비는 얼마입니까? (단위: 백만원) | I32: =K32 -> 1466.7451 | K32: =229.248+0.3073*I9 -> 1466.7451
A34: 15. 하수관거의 연간 유지관리비는 얼마입니까? (단위: 백만원) | I34: =K34 -> 12.081 | K34: =0.003*I9 -> 12.081
A36: 16. 하수관거의 내구연한은 얼마입니까? (단위: 년) | I36: =K36 -> 40 | K36: 40
A38: 17. 할인율은 얼마입니까? (단위: %) | I38: 5.5 | K38: 5.5
A40: 18. 향후 50년간 물가상승률은 어느정도로 예상합니까? (단위: %) | I40: =K40 -> 3 | K40: 3
A46: 구 분 | B46: 처리 비용 (현재가치) (단위: 백만원)
B47: 개별처리 | D47: 집합처리
B48: 건설비 | C48: 유지관리비 | D48: 건설비 | E48: 유지관리비
A49: 처리시설 | B49: 1367.164795 | C49: 2627.916992 | D49: 1161.56665 | E49: 351.0127563
A50: 관거 | D50: 2028.756592 | E50: 356.1253662
A51: 합계 | B51: 3995.081787 | D51: 3897.461426
A52: 총기준관거거리(m) | B52: 4217.114258
A53: 기준관거거리(m) | B53: 30.55879974
A54: 경제성 평가 | B54: 집합처리

Sheet 덕남
A1: 경제성 평가 일반 - 집합처리와 개별처리의 비교 | I1: 덕남
A2: 개요: 하수처리구역 설정 시 처리구역으로 설정하여 집합처리하는 것과, 처리구역으로 설정하지 않고 개별처리하는 것이 어느 것이 더 경제적인가?
A3: ※아래 질문에 대한 답을 오른쪽 노란 칸에 적어 주십시오. 질문에 대한 답을 하실 수 없는 경우에는 파란색 빈칸에 있는 숫자를 노란색 칸에 적어 주십시오
A5: 1. 하수처리구역의 목표 BOD를 선택해 주십시오.
A7: 2. 대상지역의 예상 가구수는 몇 가구입니까? | I7: =VLOOKUP($I$1,'검토 시설개요'!$A:$H,3,FALSE) -> 408
A9: 3. 대상지역에 집합처리시설을 건설할 경우 필요한 하수관거거리는 몇 미터입니까? | I9: =VLOOKUP($I$1,'검토 시설개요'!$A:$H,8,FALSE) -> 11248
A11: 4. 계획 중인 집합처리시설의 건설비는 얼마입니까? (단위: 백만원) | I11: =K11 -> 1404.89841 | K11: =30.184*(0.6*I7)^0.6982 -> 1404.89841
A13: 5. 위 건설비 중 기계 및 전기시설의 비중은 얼마입니까? | I13: =K13 -> 0.5 | K13: 0.5
A14: (나머지는 건축비, 단지조성비 등 구조물 비용입니다)
A16: 6. 계획 중인 집합처리시설의 연간 유지관리비는 얼마입니까? (단위: 백만원) | I16: =K16 -> 33.30427591 | K16: =0.1803*(0.6*I7)^0.9488 -> 33.30427591
A18: 7. 계획 중인 집합처리시설 기계 및 전기시설의 내구연한은 얼마입니까? (단위: 년) | I18: =K18 -> 15 | K18: 15
A20: 8. 계획 중인 집합처리시설 구조물의 내구연한은 얼마입니까? (단위: 년) | I20: =K20 -> 50 | K20: 50
A22: 9. 대상지역에 개인하수처리시설(1톤/일)을 설치할 경우 건설비는 얼마입니까? (단위: 백만원) | I22: =K22 -> 4.16 | K22: 4.16
A24: 10. 개인하수처리시설 건설비 중 기계 및 전기시설의 비중은 얼마입니까? | I24: =K24 -> 0.5 | K24: 0.5
A25: (나머지는 건축비 등 구조물 비용입니다)
A26: 11. 개인하수처리시설의 연간 유지관리비는 어느 정도입니까? (단위: 백만원) | I26: =K26 -> 0.646 | K26: 0.646
A28: 12. 개인하수처리시설 기계 및 전기시설의 내구연한은 얼마입니까? (단위: 년) | I28: =K28 -> 10 | K28: 10
A30: 13. 개인하수처리시설 구조물의 내구연한은 얼마입니까? (단위: 년) | I30: =K30 -> 30 | K30: 30
A32: 14. 집합처리 시 하수관거의 총 건설비는 얼마입니까? (단위: 백만원) | I32: =K32 -> 3685.7584 | K32: =229.248+0.3073*I9 -> 3685.7584
A34: 15. 하수관거의 연간 유지관리비는 얼마입니까? (단위: 백만원) | I34: =K34 -> 33.744 | K34: =0.003*I9 -> 33.744
A36: 16. 하수관거의 내구연한은 얼마입니까? (단위: 년) | I36: =K36 -> 40 | K36: 40
A38: 17. 할인율은 얼마입니까? (단위: %) | I38: 5.5 | K38: 5.5
A40: 18. 향후 50년간 물가상승률은 어느정도로 예상합니까? (단위: %) | I40: =K40 -> 3 | K40: 3
A46: 구 분 | B46: 처리 비용 (현재가치) (단위: 백만원)
B47: 개별처리 | D47: 집합처리
B48: 건설비 | C48: 유지관리비 | D48: 건설비 | E48: 유지관리비
A49: 처리시설 | B49: 4042.05249 | C49: 7769.493652 | D49: 2475.959229 | E49: 981.7479858
A50: 관거 | D50: 5098.027344 | E50: 994.7102051
A51: 합계 | B51: 11811.5459 | D51: 9550.444336
A52: 총기준관거거리(m) | B52: 15651.46484
A53: 기준관거거리(m) | B53: 38.36143494
A54: 경제성 평가 | B54: 집합처리

Sheet 대양
A1: 경제성 평가 일반 - 집합처리와 개별처리의 비교 | I1: 대양
A2: 개요: 하수처리구역 설정 시 처리구역으로 설정하여 집합처리하는 것과, 처리구역으로 설정하지 않고 개별처리하는 것이 어느 것이 더 경제적인가?
A3: ※아래 질문에 대한 답을 오른쪽 노란 칸에 적어 주십시오. 질문에 대한 답을 하실 수 없는 경우에는 파란색 빈칸에 있는 숫자를 노란색 칸에 적어 주십시오
A5: 1. 하수처리구역의 목표 BOD를 선택해 주십시오.
A7: 2. 대상지역의 예상 가구수는 몇 가구입니까? | I7: =VLOOKUP($I$1,'검토 시설개요'!$A:$H,3,FALSE) -> 95
A9: 3. 대상지역에 집합처리시설을 건설할 경우 필요한 하수관거거리는 몇 미터입니까? | I9: =VLOOKUP($I$1,'검토 시설개요'!$A:$H,8,FALSE) -> 2857
A11: 4. 계획 중인 집합처리시설의 건설비는 얼마입니까? (단위: 백만원) | I11: =K11 -> 507.8420012 | K11: =30.184*(0.6*I7)^0.6982 -> 507.8420012
A13: 5. 위 건설비 중 기계 및 전기시설의 비중은 얼마입니까? | I13: =K13 -> 0.5 | K13: 0.5
A14: (나머지는 건축비, 단지조성비 등 구조물 비용입니다)
A16: 6. 계획 중인 집합처리시설의 연간 유지관리비는 얼마입니까? (단위: 백만원) | I16: =K16 -> 8.355448944 | K16: =0.1803*(0.6*I7)^0.9488 -> 8.355448944
A18: 7. 계획 중인 집합처리시설 기계 및 전기시설의 내구연한은 얼마입니까? (단위: 년) | I18: =K18 -> 15 | K18: 15
A20: 8. 계획 중인 집합처리시설 구조물의 내구연한은 얼마입니까? (단위: 년) | I20: =K20 -> 50 | K20: 50
A22: 9. 대상지역에 개인하수처리시설(1톤/일)을 설치할 경우 건설비는 얼마입니까? (단위: 백만원) | I22: =K22 -> 4.16 | K22: 4.16
A24: 10. 개인하수처리시설 건설비 중 기계 및 전기시설의 비중은 얼마입니까? | I24: =K24 -> 0.5 | K24: 0.5
A25: (나머지는 건축비 등 구조물 비용입니다)
A26: 11. 개인하수처리시설의 연간 유지관리비는 어느 정도입니까? (단위: 백만원) | I26: =K26 -> 0.646 | K26: 0.646
A28: 12. 개인하수처리시설 기계 및 전기시설의 내구연한은 얼마입니까? (단위: 년) | I28: =K28 -> 10 | K28: 10
A30: 13. 개인하수처리시설 구조물의 내구연한은 얼마입니까? (단위: 년) | I30: =K30 -> 30 | K30: 30
A32: 14. 집합처리 시 하수관거의 총 건설비는 얼마입니까? (단위: 백만원) | I32: =K32 -> 1107.2041 | K32: =229.248+0.3073*I9 -> 1107.2041
A34: 15. 하수관거의 연간 유지관리비는 얼마입니까? (단위: 백만원) | I34: =K34 -> 8.571 | K34: =0.003*I9 -> 8.571
A36: 16. 하수관거의 내구연한은 얼마입니까? (단위: 년) | I36: =K36 -> 40 | K36: 40
A38: 17. 할인율은 얼마입니까? (단위: %) | I38: 5.5 | K38: 5.5
A40: 18. 향후 50년간 물가상승률은 어느정도로 예상합니까? (단위: %) | I40: =K40 -> 3 | K40: 3
A46: 구 분 | B46: 처리 비용 (현재가치) (단위: 백만원)
B47: 개별처리 | D47: 집합처리
B48: 건설비 | C48: 유지관리비 | D48: 건설비 | E48: 유지관리비
A49: 처리시설 | B49: 941.1641846 | C49: 1809.073242 | D49: 895.0085449 | E49: 246.3030548
A50: 관거 | D50: 1531.450562 | E50: 252.6571045
A51: 합계 | B51: 2750.237305 | D51: 2925.419189
A52: 총기준관거거리(m) | B52: 2515.835693
A53: 기준관거거리(m) | B53: 26.482481
A54: 경제성 평가 | B54: 개별처리

Sheet 옥율
A1: 경제성 평가 일반 - 집합처리와 개별처리의 비교 | I1: 옥율
A2: 개요: 하수처리구역 설정 시 처리구역으로 설정하여 집합처리하는 것과, 처리구역으로 설정하지 않고 개별처리하는 것이 어느 것이 더 경제적인가?
A3: ※아래 질문에 대한 답을 오른쪽 노란 칸에 적어 주십시오. 질문에 대한 답을 하실 수 없는 경우에는 파란색 빈칸에 있는 숫자를 노란색 칸에 적어 주십시오
A5: 1. 하수처리구역의 목표 BOD를 선택해 주십시오.
A7: 2. 대상지역의 예상 가구수는 몇 가구입니까? | I7: =VLOOKUP($I$1,'검토 시설개요'!$A:$H,3,FALSE) -> 103
A9: 3. 대상지역에 집합처리시설을 건설할 경우 필요한 하수관거거리는 몇 미터입니까? | I9: =VLOOKUP($I$1,'검토 시설개요'!$A:$H,8,FALSE) -> 1865
A11: 4. 계획 중인 집합처리시설의 건설비는 얼마입니까? (단위: 백만원) | I11: =K11 -> 537.334772 | K11: =30.184*(0.6*I7)^0.6982 -> 537.334772
A13: 5. 위 건설비 중 기계 및 전기시설의 비중은 얼마입니까? | I13: =K13 -> 0.5 | K13: 0.5
A14: (나머지는 건축비, 단지조성비 등 구조물 비용입니다)
A16: 6. 계획 중인 집합처리시설의 연간 유지관리비는 얼마입니까? (단위: 백만원) | I16: =K16 -> 9.021642054 | K16: =0.1803*(0.6*I7)^0.9488 -> 9.021642054
A18: 7. 계획 중인 집합처리시설 기계 및 전기시설의 내구연한은 얼마입니까? (단위: 년) | I18: =K18 -> 15 | K18: 15
A20: 8. 계획 중인 집합처리시설 구조물의 내구연한은 얼마입니까? (단위: 년) | I20: =K20 -> 50 | K20: 50
A22: 9. 대상지역에 개인하수처리시설(1톤/일)을 설치할 경우 건설비는 얼마입니까? (단위: 백만원) | I22: =K22 -> 4.16 | K22: 4.16
A24: 10. 개인하수처리시설 건설비 중 기계 및 전기시설의 비중은 얼마입니까? | I24: =K24 -> 0.5 | K24: 0.5
A25: (나머지는 건축비 등 구조물 비용입니다)
A26: 11. 개인하수처리시설의 연간 유지관리비는 어느 정도입니까? (단위: 백만원) | I26: =K26 -> 0.646 | K26: 0.646
A28: 12. 개인하수처리시설 기계 및 전기시설의 내구연한은 얼마입니까? (단위: 년) | I28: =K28 -> 10 | K28: 10
A30: 13. 개인하수처리시설 구조물의 내구연한은 얼마입니까? (단위: 년) | I30: =K30 -> 30 | K30: 30
A32: 14. 집합처리 시 하수관거의 총 건설비는 얼마입니까? (단위: 백만원) | I32: =K32 -> 802.3625 | K32: =229.248+0.3073*I9 -> 802.3625
A34: 15. 하수관거의 연간 유지관리비는 얼마입니까? (단위: 백만원) | I34: =K34 -> 5.595 | K34: =0.003*I9 -> 5.595
A36: 16. 하수관거의 내구연한은 얼마입니까? (단위: 년) | I36: =K36 -> 40 | K36: 40
A38: 17. 할인율은 얼마입니까? (단위: %) | I38: 5.5 | K38: 5.5
A40: 18. 향후 50년간 물가상승률은 어느정도로 예상합니까? (단위: %) | I40: =K40 -> 3 | K40: 3
A46: 구 분 | B46: 처리 비용 (현재가치) (단위: 백만원)
B47: 개별처리 | D47: 집합처리
B48: 건설비 | C48: 유지관리비 | D48: 건설비 | E48: 유지관리비
A49: 처리시설 | B49: 1020.420105 | C49: 1961.41626 | D49: 946.9858398 | E49: 265.9411926
A50: 관거 | D50: 1109.803101 | E50: 164.9301605
A51: 합계 | B51: 2981.836426 | D51: 2487.6604
A52: 총기준관거거리(m) | B52: 2827.401367
A53: 기준관거거리(m) | B53: 27.45049858
A54: 경제성 평가 | B54: 집합처리

Sheet 능치
A1: 경제성 평가 일반 - 집합처리와 개별처리의 비교 | I1: 능치
A2: 개요: 하수처리구역 설정 시 처리구역으로 설정하여 집합처리하는 것과, 처리구역으로 설정하지 않고 개별처리하는 것이 어느 것이 더 경제적인가?
A3: ※아래 질문에 대한 답을 오른쪽 노란 칸에 적어 주십시오. 질문에 대한 답을 하실 수 없는 경우에는 파란색 빈칸에 있는 숫자를 노란색 칸에 적어 주십시오
A5: 1. 하수처리구역의 목표 BOD를 선택해 주십시오.
A7: 2. 대상지역의 예상 가구수는 몇 가구입니까? | I7: =VLOOKUP($I$1,'검토 시설개요'!$A:$H,3,FALSE) -> 374
A9: 3. 대상지역에 집합처리시설을 건설할 경우 필요한 하수관거거리는 몇 미터입니까? | I9: =VLOOKUP($I$1,'검토 시설개요'!$A:$H,8,FALSE) -> 9019
A11: 4. 계획 중인 집합처리시설의 건설비는 얼마입니까? (단위: 백만원) | I11: =K11 -> 1322.089779 | K11: =30.184*(0.6*I7)^0.6982 -> 1322.089779
A13: 5. 위 건설비 중 기계 및 전기시설의 비중은 얼마입니까? | I13: =K13 -> 0.5 | K13: 0.5
A14: (나머지는 건축비, 단지조성비 등 구조물 비용입니다)
A16: 6. 계획 중인 집합처리시설의 연간 유지관리비는 얼마입니까? (단위: 백만원) | I16: =K16 -> 30.66522879 | K16: =0.1803*(0.6*I7)^0.9488 -> 30.66522879
A18: 7. 계획 중인 집합처리시설 기계 및 전기시설의 내구연한은 얼마입니까? (단위: 년) | I18: =K18 -> 15 | K18: 15
A20: 8. 계획 중인 집합처리시설 구조물의 내구연한은 얼마입니까? (단위: 년) | I20: =K20 -> 50 | K20: 50
A22: 9. 대상지역에 개인하수처리시설(1톤/일)을 설치할 경우 건설비는 얼마입니까? (단위: 백만원) | I22: =K22 -> 4.16 | K22: 4.16
A24: 10. 개인하수처리시설 건설비 중 기계 및 전기시설의 비중은 얼마입니까? | I24: =K24 -> 0.5 | K24: 0.5
A25: (나머지는 건축비 등 구조물 비용입니다)
A26: 11. 개인하수처리시설의 연간 유지관리비는 어느 정도입니까? (단위: 백만원) | I26: =K26 -> 0.646 | K26: 0.646
A28: 12. 개인하수처리시설 기계 및 전기시설의 내구연한은 얼마입니까? (단위: 년) | I28: =K28 -> 10 | K28: 10
A30: 13. 개인하수처리시설 구조물의 내구연한은 얼마입니까? (단위: 년) | I30: =K30 -> 30 | K30: 30
A32: 14. 집합처리 시 하수관거의 총 건설비는 얼마입니까? (단위: 백만원) | I32: =K32 -> 3000.7867 | K32: =229.248+0.3073*I9 -> 3000.7867
A34: 15. 하수관거의 연간 유지관리비는 얼마입니까? (단위: 백만원) | I34: =K34 -> 27.057 | K34: =0.003*I9 -> 27.057
A36: 16. 하수관거의 내구연한은 얼마입니까? (단위: 년) | I36: =K36 -> 40 | K36: 40
A38: 17. 할인율은 얼마입니까? (단위: %) | I38: 5.5 | K38: 5.5
A40: 18. 향후 50년간 물가상승률은 어느정도로 예상합니까? (단위: %) | I40: =K40 -> 3 | K40: 3
A46: 구 분 | B46: 처리 비용 (현재가치) (단위: 백만원)
B47: 개별처리 | D47: 집합처리
B48: 건설비 | C48: 유지관리비 | D48: 건설비 | E48: 유지관리비
A49: 처리시설 | B49: 3705.214844 | C49: 7122.036133 | D49: 2330.019043 | E49: 903.9537354
A50: 관거 | D50: 4150.595703 | E50: 797.5899048
A51: 합계 | B51: 10827.25098 | D51: 8182.158203
A52: 총기준관거거리(m) | B52: 14170.2832
A53: 기준관거거리(m) | B53: 37.88845825
A54: 경제성 평가 | B54: 집합처리

Sheet 도암
A1: 경제성 평가 일반 - 집합처리와 개별처리의 비교 | I1: 도암
A2: 개요: 하수처리구역 설정 시 처리구역으로 설정하여 집합처리하는 것과, 처리구역으로 설정하지 않고 개별처리하는 것이 어느 것이 더 경제적인가?
A3: ※아래 질문에 대한 답을 오른쪽 노란 칸에 적어 주십시오. 질문에 대한 답을 하실 수 없는 경우에는 파란색 빈칸에 있는 숫자를 노란색 칸에 적어 주십시오
A5: 1. 하수처리구역의 목표 BOD를 선택해 주십시오.
A7: 2. 대상지역의 예상 가구수는 몇 가구입니까? | I7: =VLOOKUP($I$1,'검토 시설개요'!$A:$H,3,FALSE) -> 299
A9: 3. 대상지역에 집합처리시설을 건설할 경우 필요한 하수관거거리는 몇 미터입니까? | I9: =VLOOKUP($I$1,'검토 시설개요'!$A:$H,8,FALSE) -> 7917
A11: 4. 계획 중인 집합처리시설의 건설비는 얼마입니까? (단위: 백만원) | I11: =K11 -> 1130.825567 | K11: =30.184*(0.6*I7)^0.6982 -> 1130.825567
A13: 5. 위 건설비 중 기계 및 전기시설의 비중은 얼마입니까? | I13: =K13 -> 0.5 | K13: 0.5
A14: (나머지는 건축비, 단지조성비 등 구조물 비용입니다)
A16: 6. 계획 중인 집합처리시설의 연간 유지관리비는 얼마입니까? (단위: 백만원) | I16: =K16 -> 24.79833123 | K16: =0.1803*(0.6*I7)^0.9488 -> 24.79833123
A18: 7. 계획 중인 집합처리시설 기계 및 전기시설의 내구연한은 얼마입니까? (단위: 년) | I18: =K18 -> 15 | K18: 15
A20: 8. 계획 중인 집합처리시설 구조물의 내구연한은 얼마입니까? (단위: 년) | I20: =K20 -> 50 | K20: 50
A22: 9. 대상지역에 개인하수처리시설(1톤/일)을 설치할 경우 건설비는 얼마입니까? (단위: 백만원) | I22: =K22 -> 4.16 | K22: 4.16
A24: 10. 개인하수처리시설 건설비 중 기계 및 전기시설의 비중은 얼마입니까? | I24: =K24 -> 0.5 | K24: 0.5
A25: (나머지는 건축비 등 구조물 비용입니다)
A26: 11. 개인하수처리시설의 연간 유지관리비는 어느 정도입니까? (단위: 백만원) | I26: =K26 -> 0.646 | K26: 0.646
A28: 12. 개인하수처리시설 기계 및 전기시설의 내구연한은 얼마입니까? (단위: 년) | I28: =K28 -> 10 | K28: 10
A30: 13. 개인하수처리시설 구조물의 내구연한은 얼마입니까? (단위: 년) | I30: =K30 -> 30 | K30: 30
A32: 14. 집합처리 시 하수관거의 총 건설비는 얼마입니까? (단위: 백만원) | I32: =K32 -> 2662.1421 | K32: =229.248+0.3073*I9 -> 2662.1421
A34: 15. 하수관거의 연간 유지관리비는 얼마입니까? (단위: 백만원) | I34: =K34 -> 23.751 | K34: =0.003*I9 -> 23.751
A36: 16. 하수관거의 내구연한은 얼마입니까? (단위: 년) | I36: =K36 -> 40 | K36: 40
A38: 17. 할인율은 얼마입니까? (단위: %) | I38: 5.5 | K38: 5.5
A40: 18. 향후 50년간 물가상승률은 어느정도로 예상합니까? (단위: %) | I40: =K40 -> 3 | K40: 3
A46: 구 분 | B46: 처리 비용 (현재가치) (단위: 백만원)
B47: 개별처리 | D47: 집합처리
B48: 건설비 | C48: 유지관리비 | D48: 건설비 | E48: 유지관리비
A49: 처리시설 | B49: 2962.19043 | C49: 5693.820312 | D49: 1992.939697 | E49: 731.0085449
A50: 관거 | D50: 3682.192871 | E50: 700.1351929
A51: 합계 | B51: 8656.010742 | D51: 7106.276367
A52: 총기준관거거리(m) | B52: 10935.08691
A53: 기준관거거리(m) | B53: 36.57219696
A54: 경제성 평가 | B54: 집합처리

Sheet 태화
A1: 경제성 평가 일반 - 집합처리와 개별처리의 비교 | I1: 태화
A2: 개요: 하수처리구역 설정 시 처리구역으로 설정하여 집합처리하는 것과, 처리구역으로 설정하지 않고 개별처리하는 것이 어느 것이 더 경제적인가?
A3: ※아래 질문에 대한 답을 오른쪽 노란 칸에 적어 주십시오. 질문에 대한 답을 하실 수 없는 경우에는 파란색 빈칸에 있는 숫자를 노란색 칸에 적어 주십시오
A5: 1. 하수처리구역의 목표 BOD를 선택해 주십시오.
A7: 2. 대상지역의 예상 가구수는 몇 가구입니까? | I7: =VLOOKUP($I$1,'검토 시설개요'!$A:$H,3,FALSE) -> 177
A9: 3. 대상지역에 집합처리시설을 건설할 경우 필요한 하수관거거리는 몇 미터입니까? | I9: =VLOOKUP($I$1,'검토 시설개요'!$A:$H,8,FALSE) -> 4862
A11: 4. 계획 중인 집합처리시설의 건설비는 얼마입니까? (단위: 백만원) | I11: =K11 -> 784.1821091 | K11: =30.184*(0.6*I7)^0.6982 -> 784.1821091
A13: 5. 위 건설비 중 기계 및 전기시설의 비중은 얼마입니까? | I13: =K13 -> 0.5 | K13: 0.5
A14: (나머지는 건축비, 단지조성비 등 구조물 비용입니다)
A16: 6. 계획 중인 집합처리시설의 연간 유지관리비는 얼마입니까? (단위: 백만원) | I16: =K16 -> 15.07935162 | K16: =0.1803*(0.6*I7)^0.9488 -> 15.07935162
A18: 7. 계획 중인 집합처리시설 기계 및 전기시설의 내구연한은 얼마입니까? (단위: 년) | I18: =K18 -> 15 | K18: 15
A20: 8. 계획 중인 집합처리시설 구조물의 내구연한은 얼마입니까? (단위: 년) | I20: =K20 -> 50 | K20: 50
A22: 9. 대상지역에 개인하수처리시설(1톤/일)을 설치할 경우 건설비는 얼마입니까? (단위: 백만원) | I22: =K22 -> 4.16 | K22: 4.16
A24: 10. 개인하수처리시설 건설비 중 기계 및 전기시설의 비중은 얼마입니까? | I24: =K24 -> 0.5 | K24: 0.5
A25: (나머지는 건축비 등 구조물 비용입니다)
A26: 11. 개인하수처리시설의 연간 유지관리비는 어느 정도입니까? (단위: 백만원) | I26: =K26 -> 0.646 | K26: 0.646
A28: 12. 개인하수처리시설 기계 및 전기시설의 내구연한은 얼마입니까? (단위: 년) | I28: =K28 -> 10 | K28: 10
A30: 13. 개인하수처리시설 구조물의 내구연한은 얼마입니까? (단위: 년) | I30: =K30 -> 30 | K30: 30
A32: 14. 집합처리 시 하수관거의 총 건설비는 얼마입니까? (단위: 백만원) | I32: =K32 -> 1723.3406 | K32: =229.248+0.3073*I9 -> 1723.3406
A34: 15. 하수관거의 연간 유지관리비는 얼마입니까? (단위: 백만원) | I34: =K34 -> 14.586 | K34: =0.003*I9 -> 14.586
A36: 16. 하수관거의 내구연한은 얼마입니까? (단위: 년) | I36: =K36 -> 40 | K36: 40
A38: 17. 할인율은 얼마입니까? (단위: %) | I38: 5.5 | K38: 5.5
A40: 18. 향후 50년간 물가상승률은 어느정도로 예상합니까? (단위: %) | I40: =K40 -> 3 | K40: 3
A46: 구 분 | B46: 처리 비용 (현재가치) (단위: 백만원)
B47: 개별처리 | D47: 집합처리
B48: 건설비 | C48: 유지관리비 | D48: 건설비 | E48: 유지관리비
A49: 처리시설 | B49: 1753.537354 | C49: 3370.589111 | D49: 1382.023682 | E49: 444.5111694
A50: 관거 | D50: 2383.671631 | E50: 429.9681091
A51: 합계 | B51: 5124.126465 | D51: 4640.174805
A52: 총기준관거거리(m) | B52: 5804.489746
A53: 기준관거거리(m) | B53: 32.79372787
A54: 경제성 평가 | B54: 집합처리

Sheet 신암
A1: 경제성 평가 일반 - 집합처리와 개별처리의 비교 | I1: 신암
A2: 개요: 하수처리구역 설정 시 처리구역으로 설정하여 집합처리하는 것과, 처리구역으로 설정하지 않고 개별처리하는 것이 어느 것이 더 경제적인가?
A3: ※아래 질문에 대한 답을 오른쪽 노란 칸에 적어 주십시오. 질문에 대한 답을 하실 수 없는 경우에는 파란색 빈칸에 있는 숫자를 노란색 칸에 적어 주십시오
A5: 1. 하수처리구역의 목표 BOD를 선택해 주십시오.
A7: 2. 대상지역의 예상 가구수는 몇 가구입니까? | I7: =VLOOKUP($I$1,'검토 시설개요'!$A:$H,3,FALSE) -> 202
A9: 3. 대상지역에 집합처리시설을 건설할 경우 필요한 하수관거거리는 몇 미터입니까? | I9: =VLOOKUP($I$1,'검토 시설개요'!$A:$H,8,FALSE) -> 5419
A11: 4. 계획 중인 집합처리시설의 건설비는 얼마입니까? (단위: 백만원) | I11: =K11 -> 859.9601393 | K11: =30.184*(0.6*I7)^0.6982 -> 859.9601393
A13: 5. 위 건설비 중 기계 및 전기시설의 비중은 얼마입니까? | I13: =K13 -> 0.5 | K13: 0.5
A14: (나머지는 건축비, 단지조성비 등 구조물 비용입니다)
A16: 6. 계획 중인 집합처리시설의 연간 유지관리비는 얼마입니까? (단위: 백만원) | I16: =K16 -> 17.09318576 | K16: =0.1803*(0.6*I7)^0.9488 -> 17.09318576
A18: 7. 계획 중인 집합처리시설 기계 및 전기시설의 내구연한은 얼마입니까? (단위: 년) | I18: =K18 -> 15 | K18: 15
A20: 8. 계획 중인 집합처리시설 구조물의 내구연한은 얼마입니까? (단위: 년) | I20: =K20 -> 50 | K20: 50
A22: 9. 대상지역에 개인하수처리시설(1톤/일)을 설치할 경우 건설비는 얼마입니까? (단위: 백만원) | I22: =K22 -> 4.16 | K22: 4.16
A24: 10. 개인하수처리시설 건설비 중 기계 및 전기시설의 비중은 얼마입니까? | I24: =K24 -> 0.5 | K24: 0.5
A25: (나머지는 건축비 등 구조물 비용입니다)
A26: 11. 개인하수처리시설의 연간 유지관리비는 어느 정도입니까? (단위: 백만원) | I26: =K26 -> 0.646 | K26: 0.646
A28: 12. 개인하수처리시설 기계 및 전기시설의 내구연한은 얼마입니까? (단위: 년) | I28: =K28 -> 10 | K28: 10
A30: 13. 개인하수처리시설 구조물의 내구연한은 얼마입니까? (단위: 년) | I30: =K30 -> 30 | K30: 30
A32: 14. 집합처리 시 하수관거의 총 건설비는 얼마입니까? (단위: 백만원) | I32: =K32 -> 1894.5067 | K32: =229.248+0.3073*I9 -> 1894.5067
A34: 15. 하수관거의 연간 유지관리비는 얼마입니까? (단위: 백만원) | I34: =K34 -> 16.257 | K34: =0.003*I9 -> 16.257
A36: 16. 하수관거의 내구연한은 얼마입니까? (단위: 년) | I36: =K36 -> 40 | K36: 40
A38: 17. 할인율은 얼마입니까? (단위: %) | I38: 5.5 | K38: 5.5
A40: 18. 향후 50년간 물가상승률은 어느정도로 예상합니까? (단위: %) | I40: =K40 -> 3 | K40: 3
A46: 구 분 | B46: 처리 비용 (현재가치) (단위: 백만원)
B47: 개별처리 | D47: 집합처리
B48: 건설비 | C48: 유지관리비 | D48: 건설비 | E48: 유지관리비
A49: 처리시설 | B49: 2001.212158 | C49: 3846.661133 | D49: 1515.57312 | E49: 503.8752441
A50: 관거 | D50: 2620.42334 | E50: 479.2260437
A51: 합계 | B51: 5847.873047 | D51: 5119.097656
A52: 총기준관거거리(m) | B52: 6838.280762
A53: 기준관거거리(m) | B53: 33.85287476
A54: 경제성 평가 | B54: 집합처리

Sheet 광기
A1: 경제성 평가 일반 - 집합처리와 개별처리의 비교 | I1: 광기
A2: 개요: 하수처리구역 설정 시 처리구역으로 설정하여 집합처리하는 것과, 처리구역으로 설정하지 않고 개별처리하는 것이 어느 것이 더 경제적인가?
A3: ※아래 질문에 대한 답을 오른쪽 노란 칸에 적어 주십시오. 질문에 대한 답을 하실 수 없는 경우에는 파란색 빈칸에 있는 숫자를 노란색 칸에 적어 주십시오
A5: 1. 하수처리구역의 목표 BOD를 선택해 주십시오.
A7: 2. 대상지역의 예상 가구수는 몇 가구입니까? | I7: =VLOOKUP($I$1,'검토 시설개요'!$A:$H,3,FALSE) -> 215
A9: 3. 대상지역에 집합처리시설을 건설할 경우 필요한 하수관거거리는 몇 미터입니까? | I9: =VLOOKUP($I$1,'검토 시설개요'!$A:$H,8,FALSE) -> 5415
A11: 4. 계획 중인 집합처리시설의 건설비는 얼마입니까? (단위: 백만원) | I11: =K11 -> 898.2361468 | K11: =30.184*(0.6*I7)^0.6982 -> 898.2361468
A13: 5. 위 건설비 중 기계 및 전기시설의 비중은 얼마입니까? | I13: =K13 -> 0.5 | K13: 0.5
A14: (나머지는 건축비, 단지조성비 등 구조물 비용입니다)
A16: 6. 계획 중인 집합처리시설의 연간 유지관리비는 얼마입니까? (단위: 백만원) | I16: =K16 -> 18.13523735 | K16: =0.1803*(0.6*I7)^0.9488 -> 18.13523735
A18: 7. 계획 중인 집합처리시설 기계 및 전기시설의 내구연한은 얼마입니까? (단위: 년) | I18: =K18 -> 15 | K18: 15
A20: 8. 계획 중인 집합처리시설 구조물의 내구연한은 얼마입니까? (단위: 년) | I20: =K20 -> 50 | K20: 50
A22: 9. 대상지역에 개인하수처리시설(1톤/일)을 설치할 경우 건설비는 얼마입니까? (단위: 백만원) | I22: =K22 -> 4.16 | K22: 4.16
A24: 10. 개인하수처리시설 건설비 중 기계 및 전기시설의 비중은 얼마입니까? | I24: =K24 -> 0.5 | K24: 0.5
A25: (나머지는 건축비 등 구조물 비용입니다)
A26: 11. 개인하수처리시설의 연간 유지관리비는 어느 정도입니까? (단위: 백만원) | I26: =K26 -> 0.646 | K26: 0.646
A28: 12. 개인하수처리시설 기계 및 전기시설의 내구연한은 얼마입니까? (단위: 년) | I28: =K28 -> 10 | K28: 10
A30: 13. 개인하수처리시설 구조물의 내구연한은 얼마입니까? (단위: 년) | I30: =K30 -> 30 | K30: 30
A32: 14. 집합처리 시 하수관거의 총 건설비는 얼마입니까? (단위: 백만원) | I32: =K32 -> 1893.2775 | K32: =229.248+0.3073*I9 -> 1893.2775
A34: 15. 하수관거의 연간 유지관리비는 얼마입니까? (단위: 백만원) | I34: =K34 -> 16.245 | K34: =0.003*I9 -> 16.245
A36: 16. 하수관거의 내구연한은 얼마입니까? (단위: 년) | I36: =K36 -> 40 | K36: 40
A38: 17. 할인율은 얼마입니까? (단위: %) | I38: 5.5 | K38: 5.5
A40: 18. 향후 50년간 물가상승률은 어느정도로 예상합니까? (단위: %) | I40: =K40 -> 3 | K40: 3
A46: 구 분 | B46: 처리 비용 (현재가치) (단위: 백만원)
B47: 개별처리 | D47: 집합처리
B48: 건설비 | C48: 유지관리비 | D48: 건설비 | E48: 유지관리비
A49: 처리시설 | B49: 2130.003174 | C49: 4094.218506 | D49: 1583.029785 | E49: 534.5929565
A50: 관거 | D50: 2618.723145 | E50: 478.872345
A51: 합계 | B51: 6224.22168 | D51: 5215.218262
A52: 총기준관거거리(m) | B52: 7380.021484
A53: 기준관거거리(m) | B53: 34.32567978
A54: 경제성 평가 | B54: 집합처리

Sheet 무안
A1: 경제성 평가 일반 - 집합처리와 개별처리의 비교 | I1: 무안
A2: 개요: 하수처리구역 설정 시 처리구역으로 설정하여 집합처리하는 것과, 처리구역으로 설정하지 않고 개별처리하는 것이 어느 것이 더 경제적인가?
A3: ※아래 질문에 대한 답을 오른쪽 노란 칸에 적어 주십시오. 질문에 대한 답을 하실 수 없는 경우에는 파란색 빈칸에 있는 숫자를 노란색 칸에 적어 주십시오
A5: 1. 하수처리구역의 목표 BOD를 선택해 주십시오.
A7: 2. 대상지역의 예상 가구수는 몇 가구입니까? | I7: =VLOOKUP($I$1,'검토 시설개요'!$A:$H,3,FALSE) -> 106
A9: 3. 대상지역에 집합처리시설을 건설할 경우 필요한 하수관거거리는 몇 미터입니까? | I9: =VLOOKUP($I$1,'검토 시설개요'!$A:$H,8,FALSE) -> 3219
A11: 4. 계획 중인 집합처리시설의 건설비는 얼마입니까? (단위: 백만원) | I11: =K11 -> 548.2145405 | K11: =30.184*(0.6*I7)^0.6982 -> 548.2145405
A13: 5. 위 건설비 중 기계 및 전기시설의 비중은 얼마입니까? | I13: =K13 -> 0.5 | K13: 0.5
A14: (나머지는 건축비, 단지조성비 등 구조물 비용입니다)
A16: 6. 계획 중인 집합처리시설의 연간 유지관리비는 얼마입니까? (단위: 백만원) | I16: =K16 -> 9.270770669 | K16: =0.1803*(0.6*I7)^0.9488 -> 9.270770669
A18: 7. 계획 중인 집합처리시설 기계 및 전기시설의 내구연한은 얼마입니까? (단위: 년) | I18: =K18 -> 15 | K18: 15
A20: 8. 계획 중인 집합처리시설 구조물의 내구연한은 얼마입니까? (단위: 년) | I20: =K20 -> 50 | K20: 50
A22: 9. 대상지역에 개인하수처리시설(1톤/일)을 설치할 경우 건설비는 얼마입니까? (단위: 백만원) | I22: =K22 -> 4.16 | K22: 4.16
A24: 10. 개인하수처리시설 건설비 중 기계 및 전기시설의 비중은 얼마입니까? | I24: =K24 -> 0.5 | K24: 0.5
A25: (나머지는 건축비 등 구조물 비용입니다)
A26: 11. 개인하수처리시설의 연간 유지관리비는 어느 정도입니까? (단위: 백만원) | I26: =K26 -> 0.646 | K26: 0.646
A28: 12. 개인하수처리시설 기계 및 전기시설의 내구연한은 얼마입니까? (단위: 년) | I28: =K28 -> 10 | K28: 10
A30: 13. 개인하수처리시설 구조물의 내구연한은 얼마입니까? (단위: 년) | I30: =K30 -> 30 | K30: 30
A32: 14. 집합처리 시 하수관거의 총 건설비는 얼마입니까? (단위: 백만원) | I32: =K32 -> 1218.4467 | K32: =229.248+0.3073*I9 -> 1218.4467
A34: 15. 하수관거의 연간 유지관리비는 얼마입니까? (단위: 백만원) | I34: =K34 -> 9.657 | K34: =0.003*I9 -> 9.657
A36: 16. 하수관거의 내구연한은 얼마입니까? (단위: 년) | I36: =K36 -> 40 | K36: 40
A38: 17. 할인율은 얼마입니까? (단위: %) | I38: 5.5 | K38: 5.5
A40: 18. 향후 50년간 물가상승률은 어느정도로 예상합니까? (단위: %) | I40: =K40 -> 3 | K40: 3
A46: 구 분 | B46: 처리 비용 (현재가치) (단위: 백만원)
B47: 개별처리 | D47: 집합처리
B48: 건설비 | C48: 유지관리비 | D48: 건설비 | E48: 유지관리비
A49: 처리시설 | B49: 1050.141113 | C49: 2018.544922 | D49: 966.1601562 | E49: 273.2850647
A50: 관거 | D50: 1685.317871 | E50: 284.6703491
A51: 합계 | B51: 3068.686035 | D51: 3209.43335
A52: 총기준관거거리(m) | B52: 2944.89624
A53: 기준관거거리(m) | B53: 27.78203964
A54: 경제성 평가 | B54: 개별처리

Sheet 신안
A1: 경제성 평가 일반 - 집합처리와 개별처리의 비교 | I1: 신안
A2: 개요: 하수처리구역 설정 시 처리구역으로 설정하여 집합처리하는 것과, 처리구역으로 설정하지 않고 개별처리하는 것이 어느 것이 더 경제적인가?
A3: ※아래 질문에 대한 답을 오른쪽 노란 칸에 적어 주십시오. 질문에 대한 답을 하실 수 없는 경우에는 파란색 빈칸에 있는 숫자를 노란색 칸에 적어 주십시오
A5: 1. 하수처리구역의 목표 BOD를 선택해 주십시오.
A7: 2. 대상지역의 예상 가구수는 몇 가구입니까? | I7: =VLOOKUP($I$1,'검토 시설개요'!$A:$H,3,FALSE) -> 239
A9: 3. 대상지역에 집합처리시설을 건설할 경우 필요한 하수관거거리는 몇 미터입니까? | I9: =VLOOKUP($I$1,'검토 시설개요'!$A:$H,8,FALSE) -> 5920
A11: 4. 계획 중인 집합처리시설의 건설비는 얼마입니까? (단위: 백만원) | I11: =K11 -> 967.1178735 | K11: =30.184*(0.6*I7)^0.6982 -> 967.1178735
A13: 5. 위 건설비 중 기계 및 전기시설의 비중은 얼마입니까? | I13: =K13 -> 0.5 | K13: 0.5
A14: (나머지는 건축비, 단지조성비 등 구조물 비용입니다)
A16: 6. 계획 중인 집합처리시설의 연간 유지관리비는 얼마입니까? (단위: 백만원) | I16: =K16 -> 20.05070103 | K16: =0.1803*(0.6*I7)^0.9488 -> 20.05070103
A18: 7. 계획 중인 집합처리시설 기계 및 전기시설의 내구연한은 얼마입니까? (단위: 년) | I18: =K18 -> 15 | K18: 15
A20: 8. 계획 중인 집합처리시설 구조물의 내구연한은 얼마입니까? (단위: 년) | I20: =K20 -> 50 | K20: 50
A22: 9. 대상지역에 개인하수처리시설(1톤/일)을 설치할 경우 건설비는 얼마입니까? (단위: 백만원) | I22: =K22 -> 4.16 | K22: 4.16
A24: 10. 개인하수처리시설 건설비 중 기계 및 전기시설의 비중은 얼마입니까? | I24: =K24 -> 0.5 | K24: 0.5
A25: (나머지는 건축비 등 구조물 비용입니다)
A26: 11. 개인하수처리시설의 연간 유지관리비는 어느 정도입니까? (단위: 백만원) | I26: =K26 -> 0.646 | K26: 0.646
A28: 12. 개인하수처리시설 기계 및 전기시설의 내구연한은 얼마입니까? (단위: 년) | I28: =K28 -> 10 | K28: 10
A30: 13. 개인하수처리시설 구조물의 내구연한은 얼마입니까? (단위: 년) | I30: =K30 -> 30 | K30: 30
A32: 14. 집합처리 시 하수관거의 총 건설비는 얼마입니까? (단위: 백만원) | I32: =K32 -> 2048.464 | K32: =229.248+0.3073*I9 -> 2048.464
A34: 15. 하수관거의 연간 유지관리비는 얼마입니까? (단위: 백만원) | I34: =K34 -> 17.76 | K34: =0.003*I9 -> 17.76
A36: 16. 하수관거의 내구연한은 얼마입니까? (단위: 년) | I36: =K36 -> 40 | K36: 40
A38: 17. 할인율은 얼마입니까? (단위: %) | I38: 5.5 | K38: 5.5
A40: 18. 향후 50년간 물가상승률은 어느정도로 예상합니까? (단위: %) | I40: =K40 -> 3 | K40: 3
A46: 구 분 | B46: 처리 비용 (현재가치) (단위: 백만원)
B47: 개별처리 | D47: 집합처리
B48: 건설비 | C48: 유지관리비 | D48: 건설비 | E48: 유지관리비
A49: 처리시설 | B49: 2367.770996 | C49: 4551.247559 | D49: 1704.425293 | E49: 591.057312
A50: 관거 | D50: 2833.372314 | E50: 523.5316772
A51: 합계 | B51: 6919.018555 | D51: 5652.386719
A52: 총기준관거거리(m) | B52: 8386.749023
A53: 기준관거거리(m) | B53: 35.0909996
A54: 경제성 평가 | B54: 집합처리

Sheet 대평
A1: 경제성 평가 일반 - 집합처리와 개별처리의 비교 | I1: 대평
A2: 개요: 하수처리구역 설정 시 처리구역으로 설정하여 집합처리하는 것과, 처리구역으로 설정하지 않고 개별처리하는 것이 어느 것이 더 경제적인가?
A3: ※아래 질문에 대한 답을 오른쪽 노란 칸에 적어 주십시오. 질문에 대한 답을 하실 수 없는 경우에는 파란색 빈칸에 있는 숫자를 노란색 칸에 적어 주십시오
A5: 1. 하수처리구역의 목표 BOD를 선택해 주십시오.
A7: 2. 대상지역의 예상 가구수는 몇 가구입니까? | I7: =VLOOKUP($I$1,'검토 시설개요'!$A:$H,3,FALSE) -> 139
A9: 3. 대상지역에 집합처리시설을 건설할 경우 필요한 하수관거거리는 몇 미터입니까? | I9: =VLOOKUP($I$1,'검토 시설개요'!$A:$H,8,FALSE) -> 3260
A11: 4. 계획 중인 집합처리시설의 건설비는 얼마입니까? (단위: 백만원) | I11: =K11 -> 662.4222763 | K11: =30.184*(0.6*I7)^0.6982 -> 662.4222763
A13: 5. 위 건설비 중 기계 및 전기시설의 비중은 얼마입니까? | I13: =K13 -> 0.5 | K13: 0.5
A14: (나머지는 건축비, 단지조성비 등 구조물 비용입니다)
A16: 6. 계획 중인 집합처리시설의 연간 유지관리비는 얼마입니까? (단위: 백만원) | I16: =K16 -> 11.98941728 | K16: =0.1803*(0.6*I7)^0.9488 -> 11.98941728
A18: 7. 계획 중인 집합처리시설 기계 및 전기시설의 내구연한은 얼마입니까? (단위: 년) | I18: =K18 -> 15 | K18: 15
A20: 8. 계획 중인 집합처리시설 구조물의 내구연한은 얼마입니까? (단위: 년) | I20: =K20 -> 50 | K20: 50
A22: 9. 대상지역에 개인하수처리시설(1톤/일)을 설치할 경우 건설비는 얼마입니까? (단위: 백만원) | I22: =K22 -> 4.16 | K22: 4.16
A24: 10. 개인하수처리시설 건설비 중 기계 및 전기시설의 비중은 얼마입니까? | I24: =K24 -> 0.5 | K24: 0.5
A25: (나머지는 건축비 등 구조물 비용입니다)
A26: 11. 개인하수처리시설의 연간 유지관리비는 어느 정도입니까? (단위: 백만원) | I26: =K26 -> 0.646 | K26: 0.646
A28: 12. 개인하수처리시설 기계 및 전기시설의 내구연한은 얼마입니까? (단위: 년) | I28: =K28 -> 10 | K28: 10
A30: 13. 개인하수처리시설 구조물의 내구연한은 얼마입니까? (단위: 년) | I30: =K30 -> 30 | K30: 30
A32: 14. 집합처리 시 하수관거의 총 건설비는 얼마입니까? (단위: 백만원) | I32: =K32 -> 1231.046 | K32: =229.248+0.3073*I9 -> 1231.046
A34: 15. 하수관거의 연간 유지관리비는 얼마입니까? (단위: 백만원) | I34: =K34 -> 9.78 | K34: =0.003*I9 -> 9.78
A36: 16. 하수관거의 내구연한은 얼마입니까? (단위: 년) | I36: =K36 -> 40 | K36: 40
A38: 17. 할인율은 얼마입니까? (단위: %) | I38: 5.5 | K38: 5.5
A40: 18. 향후 50년간 물가상승률은 어느정도로 예상합니까? (단위: %) | I40: =K40 -> 3 | K40: 3
A46: 구 분 | B46: 처리 비용 (현재가치) (단위: 백만원)
B47: 개별처리 | D47: 집합처리
B48: 건설비 | C48: 유지관리비 | D48: 건설비 | E48: 유지관리비
A49: 처리시설 | B49: 1377.071777 | C49: 2646.959961 | D49: 1167.437134 | E49: 353.4256592
A50: 관거 | D50: 1702.744873 | E50: 288.2961731
A51: 합계 | B51: 4024.031738 | D51: 3511.903809
A52: 총기준관거거리(m) | B52: 4257.362305
A53: 기준관거거리(m) | B53: 30.62850571
A54: 경제성 평가 | B54: 집합처리

Sheet 하강
A1: 경제성 평가 일반 - 집합처리와 개별처리의 비교 | I1: 하강
A2: 개요: 하수처리구역 설정 시 처리구역으로 설정하여 집합처리하는 것과, 처리구역으로 설정하지 않고 개별처리하는 것이 어느 것이 더 경제적인가?
A3: ※아래 질문에 대한 답을 오른쪽 노란 칸에 적어 주십시오. 질문에 대한 답을 하실 수 없는 경우에는 파란색 빈칸에 있는 숫자를 노란색 칸에 적어 주십시오
A5: 1. 하수처리구역의 목표 BOD를 선택해 주십시오.
A7: 2. 대상지역의 예상 가구수는 몇 가구입니까? | I7: =VLOOKUP($I$1,'검토 시설개요'!$A:$H,3,FALSE) -> 266
A9: 3. 대상지역에 집합처리시설을 건설할 경우 필요한 하수관거거리는 몇 미터입니까? | I9: =VLOOKUP($I$1,'검토 시설개요'!$A:$H,8,FALSE) -> 8049
A11: 4. 계획 중인 집합처리시설의 건설비는 얼마입니까? (단위: 백만원) | I11: =K11 -> 1042.159889 | K11: =30.184*(0.6*I7)^0.6982 -> 1042.159889
A13: 5. 위 건설비 중 기계 및 전기시설의 비중은 얼마입니까? | I13: =K13 -> 0.5 | K13: 0.5
A14: (나머지는 건축비, 단지조성비 등 구조물 비용입니다)
A16: 6. 계획 중인 집합처리시설의 연간 유지관리비는 얼마입니까? (단위: 백만원) | I16: =K16 -> 22.19388493 | K16: =0.1803*(0.6*I7)^0.9488 -> 22.19388493
A18: 7. 계획 중인 집합처리시설 기계 및 전기시설의 내구연한은 얼마입니까? (단위: 년) | I18: =K18 -> 15 | K18: 15
A20: 8. 계획 중인 집합처리시설 구조물의 내구연한은 얼마입니까? (단위: 년) | I20: =K20 -> 50 | K20: 50
A22: 9. 대상지역에 개인하수처리시설(1톤/일)을 설치할 경우 건설비는 얼마입니까? (단위: 백만원) | I22: =K22 -> 4.16 | K22: 4.16
A24: 10. 개인하수처리시설 건설비 중 기계 및 전기시설의 비중은 얼마입니까? | I24: =K24 -> 0.5 | K24: 0.5
A25: (나머지는 건축비 등 구조물 비용입니다)
A26: 11. 개인하수처리시설의 연간 유지관리비는 어느 정도입니까? (단위: 백만원) | I26: =K26 -> 0.646 | K26: 0.646
A28: 12. 개인하수처리시설 기계 및 전기시설의 내구연한은 얼마입니까? (단위: 년) | I28: =K28 -> 10 | K28: 10
A30: 13. 개인하수처리시설 구조물의 내구연한은 얼마입니까? (단위: 년) | I30: =K30 -> 30 | K30: 30
A32: 14. 집합처리 시 하수관거의 총 건설비는 얼마입니까? (단위: 백만원) | I32: =K32 -> 2702.7057 | K32: =229.248+0.3073*I9 -> 2702.7057
A34: 15. 하수관거의 연간 유지관리비는 얼마입니까? (단위: 백만원) | I34: =K34 -> 24.147 | K34: =0.003*I9 -> 24.147
A36: 16. 하수관거의 내구연한은 얼마입니까? (단위: 년) | I36: =K36 -> 40 | K36: 40
A38: 17. 할인율은 얼마입니까? (단위: %) | I38: 5.5 | K38: 5.5
A40: 18. 향후 50년간 물가상승률은 어느정도로 예상합니까? (단위: %) | I40: =K40 -> 3 | K40: 3
A46: 구 분 | B46: 처리 비용 (현재가치) (단위: 백만원)
B47: 개별처리 | D47: 집합처리
B48: 건설비 | C48: 유지관리비 | D48: 건설비 | E48: 유지관리비
A49: 처리시설 | B49: 2635.259766 | C49: 5065.405273 | D49: 1836.677612 | E49: 654.234375
A50: 관거 | D50: 3738.299316 | E50: 711.8085327
A51: 합계 | B51: 7700.665039 | D51: 6941.02002
A52: 총기준관거거리(m) | B52: 9528.399414
A53: 기준관거거리(m) | B53: 35.82104874
A54: 경제성 평가 | B54: 집합처리

Sheet 월곡
A1: 경제성 평가 일반 - 집합처리와 개별처리의 비교 | I1: 월곡
A2: 개요: 하수처리구역 설정 시 처리구역으로 설정하여 집합처리하는 것과, 처리구역으로 설정하지 않고 개별처리하는 것이 어느 것이 더 경제적인가?
A3: ※아래 질문에 대한 답을 오른쪽 노란 칸에 적어 주십시오. 질문에 대한 답을 하실 수 없는 경우에는 파란색 빈칸에 있는 숫자를 노란색 칸에 적어 주십시오
A5: 1. 하수처리구역의 목표 BOD를 선택해 주십시오.
A7: 2. 대상지역의 예상 가구수는 몇 가구입니까? | I7: =VLOOKUP($I$1,'검토 시설개요'!$A:$H,3,FALSE) -> 74
A9: 3. 대상지역에 집합처리시설을 건설할 경우 필요한 하수관거거리는 몇 미터입니까? | I9: =VLOOKUP($I$1,'검토 시설개요'!$A:$H,8,FALSE) -> 1472
A11: 4. 계획 중인 집합처리시설의 건설비는 얼마입니까? (단위: 백만원) | I11: =K11 -> 426.5594639 | K11: =30.184*(0.6*I7)^0.6982 -> 426.5594639
A13: 5. 위 건설비 중 기계 및 전기시설의 비중은 얼마입니까? | I13: =K13 -> 0.5 | K13: 0.5
A14: (나머지는 건축비, 단지조성비 등 구조물 비용입니다)
A16: 6. 계획 중인 집합처리시설의 연간 유지관리비는 얼마입니까? (단위: 백만원) | I16: =K16 -> 6.592235123 | K16: =0.1803*(0.6*I7)^0.9488 -> 6.592235123
A18: 7. 계획 중인 집합처리시설 기계 및 전기시설의 내구연한은 얼마입니까? (단위: 년) | I18: =K18 -> 15 | K18: 15
A20: 8. 계획 중인 집합처리시설 구조물의 내구연한은 얼마입니까? (단위: 년) | I20: =K20 -> 50 | K20: 50
A22: 9. 대상지역에 개인하수처리시설(1톤/일)을 설치할 경우 건설비는 얼마입니까? (단위: 백만원) | I22: =K22 -> 4.16 | K22: 4.16
A24: 10. 개인하수처리시설 건설비 중 기계 및 전기시설의 비중은 얼마입니까? | I24: =K24 -> 0.5 | K24: 0.5
A25: (나머지는 건축비 등 구조물 비용입니다)
A26: 11. 개인하수처리시설의 연간 유지관리비는 어느 정도입니까? (단위: 백만원) | I26: =K26 -> 0.646 | K26: 0.646
A28: 12. 개인하수처리시설 기계 및 전기시설의 내구연한은 얼마입니까? (단위: 년) | I28: =K28 -> 10 | K28: 10
A30: 13. 개인하수처리시설 구조물의 내구연한은 얼마입니까? (단위: 년) | I30: =K30 -> 30 | K30: 30
A32: 14. 집합처리 시 하수관거의 총 건설비는 얼마입니까? (단위: 백만원) | I32: =K32 -> 681.5936 | K32: =229.248+0.3073*I9 -> 681.5936
A34: 15. 하수관거의 연간 유지관리비는 얼마입니까? (단위: 백만원) | I34: =K34 -> 4.416 | K34: =0.003*I9 -> 4.416
A36: 16. 하수관거의 내구연한은 얼마입니까? (단위: 년) | I36: =K36 -> 40 | K36: 40
A38: 17. 할인율은 얼마입니까? (단위: %) | I38: 5.5 | K38: 5.5
A40: 18. 향후 50년간 물가상승률은 어느정도로 예상합니까? (단위: %) | I40: =K40 -> 3 | K40: 3
A46: 구 분 | B46: 처리 비용 (현재가치) (단위: 백만원)
B47: 개별처리 | D47: 집합처리
B48: 건설비 | C48: 유지관리비 | D48: 건설비 | E48: 유지관리비
A49: 처리시설 | B49: 733.1173706 | C49: 1409.172852 | D49: 751.7581787 | E49: 194.3267975
A50: 관거 | D50: 942.7592773 | E50: 130.1754456
A51: 합계 | B51: 2142.290283 | D51: 2019.019653
A52: 총기준관거거리(m) | B52: 1712.067749
A53: 기준관거거리(m) | B53: 23.13605118
A54: 경제성 평가 | B54: 집합처리

Sheet 월매
A1: 경제성 평가 일반 - 집합처리와 개별처리의 비교 | I1: 월매
A2: 개요: 하수처리구역 설정 시 처리구역으로 설정하여 집합처리하는 것과, 처리구역으로 설정하지 않고 개별처리하는 것이 어느 것이 더 경제적인가?
A3: ※아래 질문에 대한 답을 오른쪽 노란 칸에 적어 주십시오. 질문에 대한 답을 하실 수 없는 경우에는 파란색 빈칸에 있는 숫자를 노란색 칸에 적어 주십시오
A5: 1. 하수처리구역의 목표 BOD를 선택해 주십시오.
A7: 2. 대상지역의 예상 가구수는 몇 가구입니까? | I7: =VLOOKUP($I$1,'검토 시설개요'!$A:$H,3,FALSE) -> 101
A9: 3. 대상지역에 집합처리시설을 건설할 경우 필요한 하수관거거리는 몇 미터입니까? | I9: =VLOOKUP($I$1,'검토 시설개요'!$A:$H,8,FALSE) -> 4000
A11: 4. 계획 중인 집합처리시설의 건설비는 얼마입니까? (단위: 백만원) | I11: =K11 -> 530.0284461 | K11: =30.184*(0.6*I7)^0.6982 -> 530.0284461
A13: 5. 위 건설비 중 기계 및 전기시설의 비중은 얼마입니까? | I13: =K13 -> 0.5 | K13: 0.5
A14: (나머지는 건축비, 단지조성비 등 구조물 비용입니다)
A16: 6. 계획 중인 집합처리시설의 연간 유지관리비는 얼마입니까? (단위: 백만원) | I16: =K16 -> 8.85535044 | K16: =0.1803*(0.6*I7)^0.9488 -> 8.85535044
A18: 7. 계획 중인 집합처리시설 기계 및 전기시설의 내구연한은 얼마입니까? (단위: 년) | I18: =K18 -> 15 | K18: 15
A20: 8. 계획 중인 집합처리시설 구조물의 내구연한은 얼마입니까? (단위: 년) | I20: =K20 -> 50 | K20: 50
A22: 9. 대상지역에 개인하수처리시설(1톤/일)을 설치할 경우 건설비는 얼마입니까? (단위: 백만원) | I22: =K22 -> 4.16 | K22: 4.16
A24: 10. 개인하수처리시설 건설비 중 기계 및 전기시설의 비중은 얼마입니까? | I24: =K24 -> 0.5 | K24: 0.5
A25: (나머지는 건축비 등 구조물 비용입니다)
A26: 11. 개인하수처리시설의 연간 유지관리비는 어느 정도입니까? (단위: 백만원) | I26: =K26 -> 0.646 | K26: 0.646
A28: 12. 개인하수처리시설 기계 및 전기시설의 내구연한은 얼마입니까? (단위: 년) | I28: =K28 -> 10 | K28: 10
A30: 13. 개인하수처리시설 구조물의 내구연한은 얼마입니까? (단위: 년) | I30: =K30 -> 30 | K30: 30
A32: 14. 집합처리 시 하수관거의 총 건설비는 얼마입니까? (단위: 백만원) | I32: =K32 -> 1458.448 | K32: =229.248+0.3073*I9 -> 1458.448
A34: 15. 하수관거의 연간 유지관리비는 얼마입니까? (단위: 백만원) | I34: =K34 -> 12 | K34: =0.003*I9 -> 12
A36: 16. 하수관거의 내구연한은 얼마입니까? (단위: 년) | I36: =K36 -> 40 | K36: 40
A38: 17. 할인율은 얼마입니까? (단위: %) | I38: 5.5 | K38: 5.5
A40: 18. 향후 50년간 물가상승률은 어느정도로 예상합니까? (단위: %) | I40: =K40 -> 3 | K40: 3
A46: 구 분 | B46: 처리 비용 (현재가치) (단위: 백만원)
B47: 개별처리 | D47: 집합처리
B48: 건설비 | C48: 유지관리비 | D48: 건설비 | E48: 유지관리비
A49: 처리시설 | B49: 1000.606079 | C49: 1923.330566 | D49: 934.109375 | E49: 261.0392151
A50: 관거 | D50: 2017.280273 | E50: 353.7376404
A51: 합계 | B51: 2923.936523 | D51: 3566.166504
A52: 총기준관거거리(m) | B52: 2749.265869
A53: 기준관거거리(m) | B53: 27.22045326
A54: 경제성 평가 | B54: 개별처리

Sheet 옥동
A1: 경제성 평가 일반 - 집합처리와 개별처리의 비교 | I1: 옥동
A2: 개요: 하수처리구역 설정 시 처리구역으로 설정하여 집합처리하는 것과, 처리구역으로 설정하지 않고 개별처리하는 것이 어느 것이 더 경제적인가?
A3: ※아래 질문에 대한 답을 오른쪽 노란 칸에 적어 주십시오. 질문에 대한 답을 하실 수 없는 경우에는 파란색 빈칸에 있는 숫자를 노란색 칸에 적어 주십시오
A5: 1. 하수처리구역의 목표 BOD를 선택해 주십시오.
A7: 2. 대상지역의 예상 가구수는 몇 가구입니까? | I7: =VLOOKUP($I$1,'검토 시설개요'!$A:$H,3,FALSE) -> 180
A9: 3. 대상지역에 집합처리시설을 건설할 경우 필요한 하수관거거리는 몇 미터입니까? | I9: =VLOOKUP($I$1,'검토 시설개요'!$A:$H,8,FALSE) -> 5816
A11: 4. 계획 중인 집합처리시설의 건설비는 얼마입니까? (단위: 백만원) | I11: =K11 -> 793.4384787 | K11: =30.184*(0.6*I7)^0.6982 -> 793.4384787
A13: 5. 위 건설비 중 기계 및 전기시설의 비중은 얼마입니까? | I13: =K13 -> 0.5 | K13: 0.5
A14: (나머지는 건축비, 단지조성비 등 구조물 비용입니다)
A16: 6. 계획 중인 집합처리시설의 연간 유지관리비는 얼마입니까? (단위: 백만원) | I16: =K16 -> 15.32174344 | K16: =0.1803*(0.6*I7)^0.9488 -> 15.32174344
A18: 7. 계획 중인 집합처리시설 기계 및 전기시설의 내구연한은 얼마입니까? (단위: 년) | I18: =K18 -> 15 | K18: 15
A20: 8. 계획 중인 집합처리시설 구조물의 내구연한은 얼마입니까? (단위: 년) | I20: =K20 -> 50 | K20: 50
A22: 9. 대상지역에 개인하수처리시설(1톤/일)을 설치할 경우 건설비는 얼마입니까? (단위: 백만원) | I22: =K22 -> 4.16 | K22: 4.16
A24: 10. 개인하수처리시설 건설비 중 기계 및 전기시설의 비중은 얼마입니까? | I24: =K24 -> 0.5 | K24: 0.5
A25: (나머지는 건축비 등 구조물 비용입니다)
A26: 11. 개인하수처리시설의 연간 유지관리비는 어느 정도입니까? (단위: 백만원) | I26: =K26 -> 0.646 | K26: 0.646
A28: 12. 개인하수처리시설 기계 및 전기시설의 내구연한은 얼마입니까? (단위: 년) | I28: =K28 -> 10 | K28: 10
A30: 13. 개인하수처리시설 구조물의 내구연한은 얼마입니까? (단위: 년) | I30: =K30 -> 30 | K30: 30
A32: 14. 집합처리 시 하수관거의 총 건설비는 얼마입니까? (단위: 백만원) | I32: =K32 -> 2016.5048 | K32: =229.248+0.3073*I9 -> 2016.5048
A34: 15. 하수관거의 연간 유지관리비는 얼마입니까? (단위: 백만원) | I34: =K34 -> 17.448 | K34: =0.003*I9 -> 17.448
A36: 16. 하수관거의 내구연한은 얼마입니까? (단위: 년) | I36: =K36 -> 40 | K36: 40
A38: 17. 할인율은 얼마입니까? (단위: %) | I38: 5.5 | K38: 5.5
A40: 18. 향후 50년간 물가상승률은 어느정도로 예상합니까? (단위: %) | I40: =K40 -> 3 | K40: 3
A46: 구 분 | B46: 처리 비용 (현재가치) (단위: 백만원)
B47: 개별처리 | D47: 집합처리
B48: 건설비 | C48: 유지관리비 | D48: 건설비 | E48: 유지관리비
A49: 처리시설 | B49: 1783.258545 | C49: 3427.717773 | D49: 1398.336914 | E49: 451.6564331
A50: 관거 | D50: 2789.167236 | E50: 514.3345337
A51: 합계 | B51: 5210.976562 | D51: 5153.495117
A52: 총기준관거거리(m) | B52: 5927.943848
A53: 기준관거거리(m) | B53: 32.93302155
A54: 경제성 평가 | B54: 집합처리
